﻿Body Name,Body,Service Level,Expense Type,Expense Code,Narrative,Date,Transaction Number,Amount,Capital and Revenue,Supplier Name,Supplier ID
South Ribble Borough Council,http://statistics.data.gov.uk/id/local-authority/30UE,Regulatory Services,External Contractors Charges,4570,"ADDRESS REDACTED Work: The removal of all waste from the rear of the property, as requested - per NAME REDACTED",22/02/2023,0000485483,£356.62,Revenue,3d Environmental Ltd T/A 4DENV,0
South Ribble Borough Council,http://statistics.data.gov.uk/id/local-authority/30UE,Capital,Cap Contract Payment,C230,Leisure Local Funding - refurbishment of the Scout Hut and updating the camping equipment,15/02/2023,0000485000,"£5,000.00",Revenue,9th Penwortham Air Scout Group,0
South Ribble Borough Council,http://statistics.data.gov.uk/id/local-authority/30UE,Central Support Services,Materials General,4040,"Disc , Pads, VIN REDACTED",01/02/2023,0000484674,£323.38,Revenue,A & P Truck & Trailer Parts,0
South Ribble Borough Council,http://statistics.data.gov.uk/id/local-authority/30UE,Central Support Services,Materials General,4040,1 Multi Protection Valve VIN REDACTED,01/02/2023,0000484829,£415.00,Revenue,A & P Truck & Trailer Parts,0
South Ribble Borough Council,http://statistics.data.gov.uk/id/local-authority/30UE,Central Support Services,Materials General,4040,"1 drivers wide angle mirror , set of wiper blades, footbrake valve, rear shock absorbers, VIN REDACTED",08/02/2023,0000484978,£255.80,Revenue,A & P Truck & Trailer Parts,0
South Ribble Borough Council,http://statistics.data.gov.uk/id/local-authority/30UE,Central Support Services,Materials General,4040,4 X Brake Pads @ £76.00 BIN539,15/02/2023,0000485226,£304.00,Revenue,A & P Truck & Trailer Parts,0
South Ribble Borough Council,http://statistics.data.gov.uk/id/local-authority/30UE,Surplus or Deficit on Trading,Planned Annual Repair & Maintenance,2021,"WORDEN HALL as per NAME REDACTED and quote dated 5th October 2022 , Window cleaning – 12 Weekly, Gutter cleaning – 12 Weekly, £210.",01/02/2023,0000484644,£460.00,Revenue,A 2 Clean Ltd,0
South Ribble Borough Council,http://statistics.data.gov.uk/id/local-authority/30UE,Central Support Services,Agency Staff,1121,Payment regarding delivery of laptops for Locum Solicitors.,15/02/2023,0000485115,£420.00,Revenue,A2Z DIRECT LTD,0
South Ribble Borough Council,http://statistics.data.gov.uk/id/local-authority/30UE,Central Support Services,External Contractors Charges,4570,1 DPF Clean VIN REDACTED,15/02/2023,0000485201,£365.00,Revenue,AA UK CV t/a Hydrair Truck & Trailer,0
South Ribble Borough Council,http://statistics.data.gov.uk/id/local-authority/30UE,Central Support Services,Materials General,4040,2 X drop links @ £141.20 VIN REDACTED,15/02/2023,0000485244,£282.04,Revenue,AA UK CV t/a Hydrair Truck & Trailer,0
South Ribble Borough Council,http://statistics.data.gov.uk/id/local-authority/30UE,Central Support Services,Short Course,1402,ABC Food Law Training - access for NAMES REDACTED,22/02/2023,0000484973,"£1,125.00",Revenue,ABC FOOD LAW,0
South Ribble Borough Council,http://statistics.data.gov.uk/id/local-authority/30UE,Democratic Represent and  Mgnt,Corp Subs to Professional Bodies,4720,Membership Subscription Renewal to Active Lancashire 2022/2023,08/02/2023,0000484919,"£2,000.00",Revenue,ACTIVE LANCASHIRE,0
South Ribble Borough Council,http://statistics.data.gov.uk/id/local-authority/30UE,Central Support Services,Reactive Repair & Maintenance,2020,"•	To supply and fit 2 No. shower pumps to the ground floor showers at Civic Centre as per NAME REDACTED request , , , , Total Cost	£780.0",15/02/2023,0000485143,£780.00,Revenue,Ainscoe Plumbing & Heating Ltd,0
South Ribble Borough Council,http://statistics.data.gov.uk/id/local-authority/30UE,Capital,Cap Contract Payment,C230,"South Ribble Tennis Centre DNO Connection:, Sub-Total : £114,866.31, + VAT £22,973.26, Total: £137,839.57",01/02/2023,0000484290,"£114,866.31",Revenue,Alliance Leisure Services Limited,0
South Ribble Borough Council,http://statistics.data.gov.uk/id/local-authority/30UE,Capital,Cap Contract Payment,C230,"for DNO Connections and M&E Works in line with the Decarbonisation Scheme, across the leisure centres and civic centre please., ,",01/02/2023,0000484291,"£230,194.27",Revenue,Alliance Leisure Services Limited,0
South Ribble Borough Council,http://statistics.data.gov.uk/id/local-authority/30UE,Capital,Cap Contract Payment,C230,"The Civic Centre DNO Connection:, Sub-Total : £105,065.31, + VAT £21,013.06, Total: £126,078.37",01/02/2023,0000484292,"£105,065.31",Revenue,Alliance Leisure Services Limited,0
South Ribble Borough Council,http://statistics.data.gov.uk/id/local-authority/30UE,Capital,Cap Contract Payment,C230,"for DNO Connections and M&E Works in line with the Decarbonisation Scheme, across the leisure centres and civic centre please., ,",01/02/2023,0000484293,"£244,834.30",Revenue,Alliance Leisure Services Limited,0
South Ribble Borough Council,http://statistics.data.gov.uk/id/local-authority/30UE,Capital,Cap Contract Payment,C230,"Penwortham Leisure Centre Decarbonisation Works:, Sub-Total : £2,179,797.00, + VAT £435,959.40, Total: £2,615,756.40",01/02/2023,0000484294,"£226,299.51",Revenue,Alliance Leisure Services Limited,0
South Ribble Borough Council,http://statistics.data.gov.uk/id/local-authority/30UE,Capital,Cap Contract Payment,C230,"South Ribble Tennis Centre Decarbonisation Works:, Sub-Total : £409,412.27, + VAT £81,882.45, Total: £491,294.72",08/02/2023,0000484746,"£31,956.30",Revenue,Alliance Leisure Services Limited,0
South Ribble Borough Council,http://statistics.data.gov.uk/id/local-authority/30UE,Local Tax Collection,Bank Charges,4811,post office,01/02/2023,0000484513,£547.05,Revenue,ALLPAY LTD,0
South Ribble Borough Council,http://statistics.data.gov.uk/id/local-authority/30UE,Local Tax Collection,Bank Charges,4811,paypoint,01/02/2023,0000484513,£66.18,Revenue,ALLPAY LTD,0
South Ribble Borough Council,http://statistics.data.gov.uk/id/local-authority/30UE,Local Tax Collection,Bank Charges,4811,webconn,01/02/2023,0000484513,£46.00,Revenue,ALLPAY LTD,0
South Ribble Borough Council,http://statistics.data.gov.uk/id/local-authority/30UE,Central Support Services,Agency Staff,1121,Agency Staff w/e 08/01/2023,01/02/2023,0000484821,"£5,750.09",Revenue,ALS Managed Services Ltd,0
South Ribble Borough Council,http://statistics.data.gov.uk/id/local-authority/30UE,Central Support Services,Agency Staff,1121,Agency Staff w/e 15/01/2023,08/02/2023,0000485015,"£4,665.24",Revenue,ALS Managed Services Ltd,0
South Ribble Borough Council,http://statistics.data.gov.uk/id/local-authority/30UE,Central Support Services,Agency Staff,1121,Agency Staff w/e 22/01/2023,08/02/2023,0000485117,"£6,971.92",Revenue,ALS Managed Services Ltd,0
South Ribble Borough Council,http://statistics.data.gov.uk/id/local-authority/30UE,Central Support Services,Agency Staff,1121,Agency Staff w/e 29/01/2023,15/02/2023,0000485181,"£7,791.63",Revenue,ALS Managed Services Ltd,0
South Ribble Borough Council,http://statistics.data.gov.uk/id/local-authority/30UE,Central Support Services,Agency Staff,1121,Agency Staff w/e 05/02/2023,22/02/2023,0000485550,"£6,967.18",Revenue,ALS Managed Services Ltd,0
South Ribble Borough Council,http://statistics.data.gov.uk/id/local-authority/30UE,Central Support Services,External Contractors Charges,4570,", Testing and certification of all structured network cabling - Approx 950 outlets. A full detailed PDF report to be produced. Al",22/02/2023,0000485282,"£3,145.00",Revenue,AMPEC Limited,0
South Ribble Borough Council,http://statistics.data.gov.uk/id/local-authority/30UE,Central Support Services,Consultancy Fees,4541,"Description, Supply and installation of 6u 600x600 wall mounted comms cabinet including 1x 24way Cat6 patch panel and 6, way PDU.",22/02/2023,0000485297,£925.00,Revenue,AMPEC Limited,0
South Ribble Borough Council,http://statistics.data.gov.uk/id/local-authority/30UE,Surplus or Deficit on Trading,Reactive Repair & Maintenance,2020,122 Clydesdale place - 3 reported leaks - roof flue to the RHS of the entrance which is leaking - warehouse has 2 leaks below a s,01/02/2023,0000484688,£980.00,Revenue,AMS Cladding,0
South Ribble Borough Council,http://statistics.data.gov.uk/id/local-authority/30UE,Recreation & Sport,Reactive Repair & Maintenance,2020,"Please could an order be raised for AMS cladding LTD. As per NAME REDACTED request , , This is to investigate a few leaks. Two o",08/02/2023,0000485110,£600.00,Revenue,AMS Cladding,0
South Ribble Borough Council,http://statistics.data.gov.uk/id/local-authority/30UE,Surplus or Deficit on Trading,Reactive Repair & Maintenance,2020,"UNIT 4, MIDDLEFORTH INDUSTRIAL ESTATE - SEALING OF GUTTER AS PER NAME REDACTED EMAIL, QUOTATION TO NAME REDACTED",15/02/2023,0000485281,"£3,640.00",Revenue,AMS Cladding,0
South Ribble Borough Council,http://statistics.data.gov.uk/id/local-authority/30UE,Recreation & Sport,Water Charges(Metered),2511,7/12 to 6/1/23,01/02/2023,0000484867,£844.38,Revenue,Anglian Water Business (National) t/as Wave Utilit,0
South Ribble Borough Council,http://statistics.data.gov.uk/id/local-authority/30UE,Recreation & Sport,Water Charges(Metered),2511,7/12 to 6/1/23,01/02/2023,0000484868,£325.65,Revenue,Anglian Water Business (National) t/as Wave Utilit,0
South Ribble Borough Council,http://statistics.data.gov.uk/id/local-authority/30UE,Recreation & Sport,Water Charges(Metered),2511,7/12 to 6/1/23,01/02/2023,0000484869,£837.97,Revenue,Anglian Water Business (National) t/as Wave Utilit,0
South Ribble Borough Council,http://statistics.data.gov.uk/id/local-authority/30UE,Recreation & Sport,Water Charges(Metered),2511,7/12 to 6/1/23,01/02/2023,0000484870,"£1,426.15",Revenue,Anglian Water Business (National) t/as Wave Utilit,0
South Ribble Borough Council,http://statistics.data.gov.uk/id/local-authority/30UE,Recreation & Sport,Water Charges(Metered),2511,7/12 to 6/1/23,01/02/2023,0000484871,£602.90,Revenue,Anglian Water Business (National) t/as Wave Utilit,0
South Ribble Borough Council,http://statistics.data.gov.uk/id/local-authority/30UE,Recreation & Sport,Planned Annual Repair & Maintenance,2021,Penwortham Leisure Centre,22/02/2023,0000485515,"£1,487.00",Revenue,APEC Environmental Ltd,0
South Ribble Borough Council,http://statistics.data.gov.uk/id/local-authority/30UE,Recreation & Sport,Planned Annual Repair & Maintenance,2021,Leyland Leisure Centre,22/02/2023,0000485553,"£2,550.00",Revenue,APEC Environmental Ltd,0
South Ribble Borough Council,http://statistics.data.gov.uk/id/local-authority/30UE,Recreation & Sport,Planned Annual Repair & Maintenance,2021,Bamber Bridge Leisure Centre,22/02/2023,0000485554,"£2,125.00",Revenue,APEC Environmental Ltd,0
South Ribble Borough Council,http://statistics.data.gov.uk/id/local-authority/30UE,Central Support Services,Motor Fleet Policy,3611,"Insurance Premium 1st Jan 2023 - 31st December 2023., , Allianz - Motor Trade - 40/SM/29136347 - Premium £4260.00 - IPT £511.20 -",15/02/2023,0000485323,"£4,771.20",Revenue,Arthur J. Gallagher,0
South Ribble Borough Council,http://statistics.data.gov.uk/id/local-authority/30UE,Central Support Services,Personal Accident & Travel,1803,"RMP - Premiums 1st Jan 2023 - 31st December 2023, , 10628268 - Personal Accident & Travel - Premium £1050.00 - IP £126.00 - Total",15/02/2023,0000485324,"£1,176.00",Revenue,Arthur J. Gallagher,0
South Ribble Borough Council,http://statistics.data.gov.uk/id/local-authority/30UE,Central Support Services,Combined Liability,1801,"Protector Insurance - 1st January 2023 - 31st December 2023 - SRBC, , 2708567 - Combined Liability / FG	 Premium - £189,913.23	 I",15/02/2023,0000485325,"£212,702.82",Revenue,Arthur J. Gallagher,0
South Ribble Borough Council,http://statistics.data.gov.uk/id/local-authority/30UE,Central Support Services,Motor Fleet Policy,3611,"Protector Insurance - 1st January 2023 - 31st December 2023 - SRBC, , 2708565 - Motor - General Fleet	Premium - £62,060.24	IPT - ",15/02/2023,0000485326,"£69,507.47",Revenue,Arthur J. Gallagher,0
South Ribble Borough Council,http://statistics.data.gov.uk/id/local-authority/30UE,Central Support Services,Motor Fleet Policy,3611,"Maven (Aviva) Renewal Premiums 1st Jan 2023 - 31st Dec 2023, 100746230CMI - Motor Lease - Premium £2250 - IPT £270 - Total Premiu",15/02/2023,0000485327,"£2,520.00",Revenue,Arthur J. Gallagher,0
South Ribble Borough Council,http://statistics.data.gov.uk/id/local-authority/30UE,Central Support Services,Terrorism Insurance,2813,"Chaucer Insurance renewal premiums 1st Jan 2023 - 31st December 2023, , P20TERUKT00824 - Terrorism - Premium £6398.29 - IPT £767.",15/02/2023,0000485328,"£7,166.08",Revenue,Arthur J. Gallagher,0
South Ribble Borough Council,http://statistics.data.gov.uk/id/local-authority/30UE,Central Support Services,Property Insurance - Commercial and Industrial,2812,"Protector Insurance - Renewal Premiums 1st Jan 2023 - 31st December 2023 - SRBC, , 2708568 - Commercial Property	Premium - £26,15",15/02/2023,0000485329,"£29,292.59",Revenue,Arthur J. Gallagher,0
South Ribble Borough Council,http://statistics.data.gov.uk/id/local-authority/30UE,Central Support Services,Property Insurance,2811,"Protector Insurance - 1st January 2023 - 31st December 2023 - SRBC, , 2708568 - General Property 	 Premium - £55,934.79	IPT - £6,",15/02/2023,0000485329,"£62,616.45",Revenue,Arthur J. Gallagher,0
South Ribble Borough Council,http://statistics.data.gov.uk/id/local-authority/30UE,Central Support Services,Materials General,4040,"Cylinder head, Cylinder head gasket, 2x push rods, 2x stem oil seals, , VIN REDACTED",01/02/2023,0000484657,£295.74,Revenue,BALMERS GM LTD,0
South Ribble Borough Council,http://statistics.data.gov.uk/id/local-authority/30UE,Capital,Cap Contract Payment,C230,Mayors parlour refurbishment- civic centre,01/02/2023,0000484680,"£26,046.00",Revenue,Bambers Remedial Contractors Ltd,0
South Ribble Borough Council,http://statistics.data.gov.uk/id/local-authority/30UE,Open Spaces,Plants Trees & Shrubs,4046,"50 x Birch 120/150, , 50 x Wild Cherry 120/150, , 50 x Hazel 120/150, , 50 x Bird Cherry 120/150",08/02/2023,0000484934,£365.00,Revenue,BANNISTER HALL LANDSCAPE SUPPLIES,0
South Ribble Borough Council,http://statistics.data.gov.uk/id/local-authority/30UE,Housing Advice,Contributions to Other Bodies,4730,AFFORDABLE WARMTH SCHEME FOR INSULATION AT ADDRESS REDACTED PER QUOTE SUPPLIED OF £1168.00 ( NO VAT),01/02/2023,0000484626,"£1,168.00",Revenue,Bartons of Duke Street Ltd,0
South Ribble Borough Council,http://statistics.data.gov.uk/id/local-authority/30UE,Housing Advice,Contributions to Other Bodies,4730,AFFORDABLE WARMTH SCHEME FOR INSULATION AT ADDRESS REDACTED AS PER QUOTE SUPPLIED OF £1203.00( NO VAT),01/02/2023,0000484635,"£1,203.00",Revenue,Bartons of Duke Street Ltd,0
South Ribble Borough Council,http://statistics.data.gov.uk/id/local-authority/30UE,Housing Advice,Contributions to Other Bodies,4730,AFFORDABLE WARMTH SCHEME FOR INSULATION AT ADDRESS REDACTED AS PER QUOTE SUPPLIED OF £699 ( NO VAT),22/02/2023,0000485481,£699.00,Revenue,Bartons of Duke Street Ltd,0
South Ribble Borough Council,http://statistics.data.gov.uk/id/local-authority/30UE,Housing Advice,Contributions to Other Bodies,4730,AFFORDABLE WARMTH SCHEME FOR INSULATION AT ADDRESS REDACTED AS PER QUOTE SUPPLIED OF £630.00 ( NO VAT),22/02/2023,0000485517,£630.00,Revenue,Bartons of Duke Street Ltd,0
South Ribble Borough Council,http://statistics.data.gov.uk/id/local-authority/30UE,Central Support Services,Reactive Repair & Maintenance,2020,for Moss side depot to replace all defective emergency lighting. Price tbc- £400 should suffice. As per Jason request,01/02/2023,0000484841,£606.48,Revenue,BELEC ELECTRICAL LTD,0
South Ribble Borough Council,http://statistics.data.gov.uk/id/local-authority/30UE,Community Development,Room Hire,2402,Delivery of HAF Plus Food provision,01/02/2023,0000484937,"£7,500.00",Revenue,BELEC ELECTRICAL LTD,0
South Ribble Borough Council,http://statistics.data.gov.uk/id/local-authority/30UE,Economic Development,Partnership,485I,"Evolutive Licence agreement , Evolutive licence covering Jan-Dec 2023., Partner licence agreement taking into account the number ",22/02/2023,0000484961,"£1,670.92",Revenue,BLACKBURN WITH DARWEN BOROUGH COUNCIL,0
South Ribble Borough Council,http://statistics.data.gov.uk/id/local-authority/30UE,Central Support Services,Lancashire Payroll Service,4531,Payroll contract charges for 2022/2023 for South Ribble Borough Council,15/02/2023,0000484193,"£8,057.70",Revenue,Blackpool Council,0
South Ribble Borough Council,http://statistics.data.gov.uk/id/local-authority/30UE,Central Support Services,Lancashire Payroll Service,4531,Payroll contract charges for 2022/2023 for South Ribble Borough Council,15/02/2023,0000484194,"£7,484.40",Revenue,Blackpool Council,0
South Ribble Borough Council,http://statistics.data.gov.uk/id/local-authority/30UE,Central Support Services,Lancashire Payroll Service,4531,Payroll charges for 2021/22 including set up costs and emergency payments,22/02/2023,0000484493,"£4,200.00",Revenue,Blackpool Council,0
South Ribble Borough Council,http://statistics.data.gov.uk/id/local-authority/30UE,Central Support Services,Lancashire Payroll Service,4531,Payroll contract charges for 2022/23 for South Ribble Leisure,22/02/2023,0000484494,"£2,116.80",Revenue,Blackpool Council,0
South Ribble Borough Council,http://statistics.data.gov.uk/id/local-authority/30UE,Central Support Services,Lancashire Payroll Service,4531,Payroll contract charges for 2022/23 for South Ribble Leisure,22/02/2023,0000484495,"£2,160.90",Revenue,Blackpool Council,0
South Ribble Borough Council,http://statistics.data.gov.uk/id/local-authority/30UE,Central Support Services,Lancashire Payroll Service,4531,Payroll contract charges for 2022/2023 for South Ribble Borough Council,15/02/2023,0000484983,"£8,529.40",Revenue,Blackpool Council,0
South Ribble Borough Council,http://statistics.data.gov.uk/id/local-authority/30UE,Central Support Services,Lancashire Payroll Service,4531,SRBC payroll standing charge,08/02/2023,0000485116,"£16,000.00",Revenue,Blackpool Council,0
South Ribble Borough Council,http://statistics.data.gov.uk/id/local-authority/30UE,Central Support Services,Lancashire Payroll Service,4531,Payroll contract charges for 2022/23 for South Ribble Leisure,22/02/2023,0000485366,"£2,280.60",Revenue,Blackpool Council,0
South Ribble Borough Council,http://statistics.data.gov.uk/id/local-authority/30UE,Capital,Capital Grant,C570,"DFG WORK TO COMPLETE BEDROOM/BATHROOM ADAPTATION AT 172 LONGMEANYGATE, LEYLAND AS PER QUOTE SUPPLIED £37514.00. CUST CONTRIBUTION",15/02/2023,0000485189,"£8,000.00",Revenue,Bright Construction North West Ltd,0
South Ribble Borough Council,http://statistics.data.gov.uk/id/local-authority/30UE,Capital,Capital Grant,C570,"DFG WORK TO COMPLETE BEDROOM/BATHROOM ADAPTATION AT 172 LONGMEANYGATE, LEYLAND AS PER QUOTE SUPPLIED £37514.00. CUST CONTRIBUTION",15/02/2023,0000485288,"£10,000.00",Revenue,Bright Construction North West Ltd,0
South Ribble Borough Council,http://statistics.data.gov.uk/id/local-authority/30UE,Capital,Capital Grant,C570,DFG WORK FOR ADAPTATION FOR EXTENSION FOR LEVEL ACCESS BATHROOM AND BEDROOM AT 4 LADYACRE BAMBER BRIDGE AS PER SRBC PLANS AND QUO,01/02/2023,0000484691,"£10,000.00",Revenue,C & C Joinery NW Ltd,0
South Ribble Borough Council,http://statistics.data.gov.uk/id/local-authority/30UE,Central Support Services,Agency Staff,1121,Consultant planning officer NAME REDACTED,15/02/2023,0000485029,"£1,748.00",Revenue,CAPITA PROPERTY AND INFRASTRUCTURE LTD,0
South Ribble Borough Council,http://statistics.data.gov.uk/id/local-authority/30UE,Open Spaces,GM Refurbishment,4657,"Inspection of St Mary’s Churchyard Wall, Leyland War Memorial and Worden Ice House",15/02/2023,0000485370,"£2,750.00",Revenue,Capstone Consulting Engineeers Ltd,0
South Ribble Borough Council,http://statistics.data.gov.uk/id/local-authority/30UE,Central Support Services,Software Licensing,4243,"Renewal - CaseWare IDEA v12 x 3, 01.11.2022 - 31.10.2023",01/02/2023,0000482735,"£1,575.00",Revenue,Caseware UK,0
South Ribble Borough Council,http://statistics.data.gov.uk/id/local-authority/30UE,Central Support Services,Agency Staff,1121,"Provision of a temporary Auditor, contract from 9th November 2022 to 26th May 2022, £33 per hour Total £32967",15/02/2023,0000484398,"£1,424.61",Revenue,Castlefield Recruitment Limited,0
South Ribble Borough Council,http://statistics.data.gov.uk/id/local-authority/30UE,Central Support Services,Agency Staff,1121,"Provision of a temporary Auditor, contract from 9th November 2022 to 26th May 2022, £33 per hour Total £32967",15/02/2023,0000484490,"£1,350.03",Revenue,Castlefield Recruitment Limited,0
South Ribble Borough Council,http://statistics.data.gov.uk/id/local-authority/30UE,Central Support Services,Agency Staff,1121,"Provision of a temporary Auditor, contract from 9th November 2022 to 26th May 2022, £33 per hour Total £32967",15/02/2023,0000484491,"£1,317.03",Revenue,Castlefield Recruitment Limited,0
South Ribble Borough Council,http://statistics.data.gov.uk/id/local-authority/30UE,Central Support Services,Agency Staff,1121,"Provision of a temporary Auditor, contract from 9th November 2022 to 26th May 2022, £33 per hour Total £32967",15/02/2023,0000484718,£987.36,Revenue,Castlefield Recruitment Limited,0
South Ribble Borough Council,http://statistics.data.gov.uk/id/local-authority/30UE,Central Support Services,Agency Staff,1121,"Provision of a temporary Auditor, contract from 9th November 2022 to 26th May 2022, £33 per hour Total £32967",15/02/2023,0000484987,£759.00,Revenue,Castlefield Recruitment Limited,0
South Ribble Borough Council,http://statistics.data.gov.uk/id/local-authority/30UE,Central Support Services,Agency Staff,1121,"Provision of a temporary Auditor, contract from 9th November 2022 to 26th May 2022, £33 per hour Total £32967",15/02/2023,0000485044,"£1,248.39",Revenue,Castlefield Recruitment Limited,0
South Ribble Borough Council,http://statistics.data.gov.uk/id/local-authority/30UE,Central Support Services,Agency Staff,1121,"Provision of a temporary Auditor, 12 weeks £33 per hour. Total cost £8910",15/02/2023,0000485045,£748.11,Revenue,Castlefield Recruitment Limited,0
South Ribble Borough Council,http://statistics.data.gov.uk/id/local-authority/30UE,Central Support Services,Departmental Course Fees,1420,"DWI private water supply sampling 18 month assessment for Mick Cuerden, EHO on 17 August - per NAME REDACTED",08/02/2023,0000485030,£369.00,Revenue,CATG Ltd,0
South Ribble Borough Council,http://statistics.data.gov.uk/id/local-authority/30UE,Central Support Services,Short Course,1402,"Level 3 First Aid at Work Course, Held at Centaur Training Services on Tuesday 6th,, Wednesday 7th, & Thursday 8th December 2022.",22/02/2023,0000484826,£270.00,Revenue,Centaur Training Services (North West) Ltd,0
South Ribble Borough Council,http://statistics.data.gov.uk/id/local-authority/30UE,Central Support Services,Short Course,1402,"First Aid 2 Day Refresher Training 30/01/2023 and 31/01/2023 for NAMES REDACTED, £85.00 per person",22/02/2023,0000485005,£170.00,Revenue,Centaur Training Services (North West) Ltd,0
South Ribble Borough Council,http://statistics.data.gov.uk/id/local-authority/30UE,Central Support Services,Short Course,1402,First Aid Refresher Training for NAME REDACTED on 27/02/2023 and 28/02/2023,22/02/2023,0000485005,£85.00,Revenue,Centaur Training Services (North West) Ltd,0
South Ribble Borough Council,http://statistics.data.gov.uk/id/local-authority/30UE,Economic Development,Public Relations Strategy,4848,Annual membership fee for CIPR for NAME REDACTED,08/02/2023,0000484697,£253.00,Revenue,CHARTERED INSTITUTE OF PUBLICRELATIONS,0
South Ribble Borough Council,http://statistics.data.gov.uk/id/local-authority/30UE,Parking Services,Processing Centre Charges,4516,Notice processing services- back office - December 2022,15/02/2023,0000485228,£501.09,Revenue,Chipside Ltd,0
South Ribble Borough Council,http://statistics.data.gov.uk/id/local-authority/30UE,Central Support Services,Chorley Shared Services Costs Staffing,5500,50% Contribution to Chorley Customer Services Redundancy Costs,01/02/2023,0000482682,"£58,877.16",Revenue,CHORLEY BOROUGH COUNCIL,0
South Ribble Borough Council,http://statistics.data.gov.uk/id/local-authority/30UE,Homelessness,Temporary Accommodation,5311,"1 & 2 JB, 01.09.22 – 30.09.22 – 30 Days , 31 X £38.63 = £1158.90, , 07.09.22 – 30.09.22 – 23 days, 23 X £38.63 = £888.49",08/02/2023,0000483988,"£2,047.39",Revenue,CHORLEY BOROUGH COUNCIL,0
South Ribble Borough Council,http://statistics.data.gov.uk/id/local-authority/30UE,Corporate Management,Miscellaneous Expenses,4851,Quarter 3 Recharges 2022/23,15/02/2023,0000485227,"£750,852.24",Revenue,CHORLEY BOROUGH COUNCIL,0
South Ribble Borough Council,http://statistics.data.gov.uk/id/local-authority/30UE,Homelessness,Temporary Accommodation,5311,"Cotswold - CBC , ADDRESS REDACTED , Dec 2022",15/02/2023,0000485371,"£2,395.06",Revenue,CHORLEY BOROUGH COUNCIL,0
South Ribble Borough Council,http://statistics.data.gov.uk/id/local-authority/30UE,Homelessness,Temporary Accommodation,5311,"Purchase Order Request received on 01/02/23 from NAME REDACTED, Housing Accommodation Officer, at Cotswold House (Chorley Coun",15/02/2023,0000485372,"£2,395.06",Revenue,CHORLEY BOROUGH COUNCIL,0
South Ribble Borough Council,http://statistics.data.gov.uk/id/local-authority/30UE,Economic Development,Grants and Subscriptions,4741,The work is for support with consultancy and delivery of workshop for Business Energy Advice event.,22/02/2023,0000483985,£350.00,Revenue,Christopher Wilson,0
South Ribble Borough Council,http://statistics.data.gov.uk/id/local-authority/30UE,Economic Development,Intruder Alarm,2035,"`call out` for Leyland market, investigate and repair the fault showing on the cctv system. As below reported by NAME REDACTED, £350 , r",22/02/2023,0000485423,£264.34,Revenue,CHUBB LTD,0
South Ribble Borough Council,http://statistics.data.gov.uk/id/local-authority/30UE,Central Support Services,College Course,1403,Certified Internal Auditor Training for NAME REDACTED,22/02/2023,0000485026,£556.00,Revenue,CIIA (CHARTERED INST OF INT AUDITORS),0
South Ribble Borough Council,http://statistics.data.gov.uk/id/local-authority/30UE,Central Support Services,College Course,1403,,22/02/2023,0000485026,£217.00,Revenue,CIIA (CHARTERED INST OF INT AUDITORS),0
South Ribble Borough Council,http://statistics.data.gov.uk/id/local-authority/30UE,Economic Development,Operational Equip & Tools,4010,"Churchill Roundabout Xmas 2022, , 1) Led string set replacement (8 new sets) and rest of roundabout as is., Costs, Materials , Fl",01/02/2023,0000484839,"£3,598.00",Revenue,City Illuiminations Ltd,0
South Ribble Borough Council,http://statistics.data.gov.uk/id/local-authority/30UE,Economic Development,Operational Equip & Tools,4010,"POLE FEATURES (All areas- Chapel Brow/Hough lane/Town-gate /Leyland cross- 40 , features), Items to stay as 2021 but we will redo",01/02/2023,0000484914,"£3,268.00",Revenue,City Illuiminations Ltd,0
South Ribble Borough Council,http://statistics.data.gov.uk/id/local-authority/30UE,Central Support Services,Software Licensing,4243,"Licence, Support and Maintenance, For the Period : 01/02/2023 to 31/01/2024 , Escrow agreement annual fee. Any increases imposed ",15/02/2023,0000485359,£267.06,Revenue,CIVICA UK LTD,0
South Ribble Borough Council,http://statistics.data.gov.uk/id/local-authority/30UE,Central Support Services,Software Licensing,4243,"Licence, Support and Maintenance, For the Period : 01/02/2023 to 31/01/2024, Escrow agreement annual fee. Any increases imposed b",15/02/2023,0000485360,£267.06,Revenue,CIVICA UK LTD,0
South Ribble Borough Council,http://statistics.data.gov.uk/id/local-authority/30UE,Central Support Services,Software Licensing,4243,"Licence, Support and Maintenance, For the Period : 01/02/2023 to 31/01/2024, Escrow agreement annual fee. Any increases imposed b",22/02/2023,0000485373,£267.06,Revenue,CIVICA UK LTD,0
South Ribble Borough Council,http://statistics.data.gov.uk/id/local-authority/30UE,Homelessness,Temporary Accommodation,5311,"19th December to 15th January - 27 nights , NAMES REDACTED",01/02/2023,0000484619,"£9,301.50",Revenue,CLAREMONT HOTEL,0
South Ribble Borough Council,http://statistics.data.gov.uk/id/local-authority/30UE,Homelessness,Temporary Accommodation,5311,Purchase order for The Claremont Hotel in Preston ADDRESS REDACTED for homeless individuals ,08/02/2023,0000485121,"£2,411.50",Revenue,CLAREMONT HOTEL,0
South Ribble Borough Council,http://statistics.data.gov.uk/id/local-authority/30UE,Homelessness,Temporary Accommodation,5311,Purchase order for The Claremont Hotel in Preston ADDRESS REDACTED for homeless individuals ,08/02/2023,0000485131,"£1,809.00",Revenue,CLAREMONT HOTEL,0
South Ribble Borough Council,http://statistics.data.gov.uk/id/local-authority/30UE,Homelessness,Temporary Accommodation,5311,Purchase order for The Claremont Hotel for guests staying at the hotel between 30.01.23 and 05.02.23. NAMES REDACTED,15/02/2023,0000485275,"£1,550.00",Revenue,CLAREMONT HOTEL,0
South Ribble Borough Council,http://statistics.data.gov.uk/id/local-authority/30UE,Short Term Creditors,Amount Paid,0030,DECEMBER 2022 - CHILDCARE VOUCHERS (V),03/02/2023,0000484069,£637.00,Revenue,COMPUTERSHARE VOUCHER SERVICES,0
South Ribble Borough Council,http://statistics.data.gov.uk/id/local-authority/30UE,Short Term Creditors,Amount Paid,0030,charge,03/02/2023,0000484069,£38.22,Revenue,COMPUTERSHARE VOUCHER SERVICES,0
South Ribble Borough Council,http://statistics.data.gov.uk/id/local-authority/30UE,Short Term Creditors,Amount Paid,0030,DECEMBER 2022 - CHILDCARE VOUCHERS (V),03/02/2023,0000484749,£320.00,Revenue,COMPUTERSHARE VOUCHER SERVICES,0
South Ribble Borough Council,http://statistics.data.gov.uk/id/local-authority/30UE,Short Term Creditors,Amount Paid,0030,,03/02/2023,0000484749,£19.20,Revenue,COMPUTERSHARE VOUCHER SERVICES,0
South Ribble Borough Council,http://statistics.data.gov.uk/id/local-authority/30UE,Central Support Services,IT Consumables,413A,"10 x Jabra evolve 30 II MS stereo headsets and delivery, GN21-1045, Jabra EVOLVE 30 II Duo USB , Headset - MS 10 Piece 40.50 20 4",22/02/2023,0000485274,£405.00,Revenue,Corporate Direct (Europe) Ltd. t/as Corporate Tele,0
South Ribble Borough Council,http://statistics.data.gov.uk/id/local-authority/30UE,Central Support Services,Miscellaneous Expenses,4851,"To serve and evict travellers on the leisure centre, Withy grove park,Bamber bridge, Preston PR5 6YG",01/02/2023,0000484670,"£1,250.00",Revenue,Court Enforcement Specialists Ltd,0
South Ribble Borough Council,http://statistics.data.gov.uk/id/local-authority/30UE,Central Support Services,Microfilming General,4151,Service contract for microfiche machine,01/02/2023,0000484695,£415.00,Revenue,Covergold Limited,0
South Ribble Borough Council,http://statistics.data.gov.uk/id/local-authority/30UE,Local Tax Collection,Postage General,4291,POSTAGE FOR AUG 2022 TO MARCH 2023,01/02/2023,0000484613,£414.41,Revenue,CRITIQOM,0
South Ribble Borough Council,http://statistics.data.gov.uk/id/local-authority/30UE,Local Tax Collection,Postage General,4291,POSTAGE FOR AUG 2022 TO MARCH 2023,01/02/2023,0000484654,£400.78,Revenue,CRITIQOM,0
South Ribble Borough Council,http://statistics.data.gov.uk/id/local-authority/30UE,Local Tax Collection,Postage General,4291,POSTAGE FOR AUG 2022 TO MARCH 2023,01/02/2023,0000484659,£550.10,Revenue,CRITIQOM,0
South Ribble Borough Council,http://statistics.data.gov.uk/id/local-authority/30UE,Recycling,Publicity & Promotion,4842,"For mailing 1, vol 13216 mailed Nov 2022, total charge for PO is £6,473.39, This is made up of the following:-, , Postage £5059.2",01/02/2023,0000484726,"£6,173.39",Revenue,CRITIQOM,0
South Ribble Borough Council,http://statistics.data.gov.uk/id/local-authority/30UE,Local Tax Collection,Postage General,4291,POSTAGE FOR AUG 2022 TO MARCH 2023,22/02/2023,0000485319,£444.51,Revenue,CRITIQOM,0
South Ribble Borough Council,http://statistics.data.gov.uk/id/local-authority/30UE,Local Tax Collection,Postage General,4291,POSTAGE FOR AUG 2022 TO MARCH 2023,22/02/2023,0000485466,£599.07,Revenue,CRITIQOM,0
South Ribble Borough Council,http://statistics.data.gov.uk/id/local-authority/30UE,Economic Development,Grants and Subscriptions,4741,10X Audit`s for South Ribble`s BEE Scheme,22/02/2023,0000485212,"£5,000.00",Revenue,Crowberry Consulting Ltd,0
South Ribble Borough Council,http://statistics.data.gov.uk/id/local-authority/30UE,Central Support Services,Legal,4821,NAME REDACTED V South Ribble Borough Council-Period: 27 October 2022 to 21 December 2022,15/02/2023,0000485300,"£1,935.00",Revenue,DAC BEACHCROFT LLP,0
South Ribble Borough Council,http://statistics.data.gov.uk/id/local-authority/30UE,Central Support Services,Legal,4821,disbursments,15/02/2023,0000485300,£275.00,Revenue,DAC BEACHCROFT LLP,0
South Ribble Borough Council,http://statistics.data.gov.uk/id/local-authority/30UE,Homelessness,Contributions to Other Bodies,4730,Payment required for NAMES REDACTED for accommodation services they provide at The Anvil Guest House for homeles,01/02/2023,0000484750,£420.00,Revenue,David Iddon & Corrina Kellett,0
South Ribble Borough Council,http://statistics.data.gov.uk/id/local-authority/30UE,Homelessness,Temporary Accommodation,5311,"Purchase order for homeless individual, ``MO``, at the Anvil Guest House (owned by NAMES REDACTED), £300.00 for ",22/02/2023,0000485562,£300.00,Revenue,David Iddon & Corrina Kellett,0
South Ribble Borough Council,http://statistics.data.gov.uk/id/local-authority/30UE,Homelessness,Temporary Accommodation,5311,"Purchase order for homeless individual, ``MO``, at the Anvil Guest House (owned by NAMES REDACTED), £420.00 for ",22/02/2023,0000485563,£420.00,Revenue,David Iddon & Corrina Kellett,0
South Ribble Borough Council,http://statistics.data.gov.uk/id/local-authority/30UE,Open Spaces,GM Refurbishment,4657,"Perimeter repairs at Withy Grove playground to Toddler roundabout area, Edge of toddler area nearest the swings, toddler swings, ",08/02/2023,0000484921,"£4,900.00",Revenue,DCM Projects Ltd,0
South Ribble Borough Council,http://statistics.data.gov.uk/id/local-authority/30UE,Central Support Services,Materials General,4040,"Left hand door handle, VIN REDACTED",08/02/2023,0000484844,£381.95,Revenue,DENNIS EAGLE LTD,0
South Ribble Borough Council,http://statistics.data.gov.uk/id/local-authority/30UE,Central Support Services,Materials General,4040,"LED Light , Bracket, Reflector, VIN REDACTED",08/02/2023,0000484844,£154.59,Revenue,DENNIS EAGLE LTD,0
South Ribble Borough Council,http://statistics.data.gov.uk/id/local-authority/30UE,Central Support Services,Materials General,4040,"Hood and bearing assembly, 2x wheel rims, 10x whell bolts, 10x wheel nuts, VIN REDACTED",22/02/2023,0000485046,"£2,134.18",Revenue,DENNIS EAGLE LTD,0
South Ribble Borough Council,http://statistics.data.gov.uk/id/local-authority/30UE,Central Support Services,Materials General,4040,"1x air bag 1x pressure limiting valve, VIN REDACTED",22/02/2023,0000485047,£577.95,Revenue,DENNIS EAGLE LTD,0
South Ribble Borough Council,http://statistics.data.gov.uk/id/local-authority/30UE,Central Support Services,Materials General,4040,Anti roll bar VIN REDACTED,22/02/2023,0000485272,"£1,306.20",Revenue,DENNIS EAGLE LTD,0
South Ribble Borough Council,http://statistics.data.gov.uk/id/local-authority/30UE,Central Support Services,Materials General,4040,2x anti roll bar bushes VIN REDACTED,22/02/2023,0000485273,£298.38,Revenue,DENNIS EAGLE LTD,0
South Ribble Borough Council,http://statistics.data.gov.uk/id/local-authority/30UE,Central Support Services,Materials General,4040,"LH Door Hatch - 1032286, VIN REDACTED",22/02/2023,0000485375,£349.68,Revenue,DENNIS EAGLE LTD,0
South Ribble Borough Council,http://statistics.data.gov.uk/id/local-authority/30UE,Central Support Services,Materials General,4040,1 door latch To be kept in stock,22/02/2023,0000485440,£349.68,Revenue,DENNIS EAGLE LTD,0
South Ribble Borough Council,http://statistics.data.gov.uk/id/local-authority/30UE,Central Support Services,Materials General,4040,1 Door Handle VIN REDACTED,22/02/2023,0000485476,£349.68,Revenue,DENNIS EAGLE LTD,0
South Ribble Borough Council,http://statistics.data.gov.uk/id/local-authority/30UE,Open Spaces,Operational Equip & Tools,4010,"HT 135 Pole Saw 30CM/12"" 1/4"" 1.1, 4 mix engin as per quotation 241706 on 20.01.2023",22/02/2023,0000485048,£682.50,Revenue,DICK LEIGH,0
South Ribble Borough Council,http://statistics.data.gov.uk/id/local-authority/30UE,Central Support Services,Maintenance & Repair,4013,"Fujitsu fi-5750C Maintenance (31st Jan 2023 - 30th Jan2024), £ 731.50, , Fujitsu fi-6770 Maintenance (31st Jan 2023 - 30th Jan202",08/02/2023,0000484751,"£1,364.00",Revenue,E FILE UK LTD,0
South Ribble Borough Council,http://statistics.data.gov.uk/id/local-authority/30UE,Recreation & Sport,Electricity,2303,11/11 to 30/11,01/02/2023,0000484714,"£1,009.42",Revenue,E On   A-3059D946,0
South Ribble Borough Council,http://statistics.data.gov.uk/id/local-authority/30UE,Recreation & Sport,Electricity,2303,7 jan 23 - 31 jan 23,15/02/2023,0000485355,£885.68,Revenue,E On   A-3059D946,0
South Ribble Borough Council,http://statistics.data.gov.uk/id/local-authority/30UE,Central Support Services,Telecomms - Mobile,4260,01 Sep 2022,01/02/2023,0000484662,£29.75,Revenue,EE Ltd,0
South Ribble Borough Council,http://statistics.data.gov.uk/id/local-authority/30UE,Central Support Services,Telecomms - Mobile,4260,01 Sep 2022 - Non VATable Charges (as discussed with NAME REDACTED),01/02/2023,0000484662,"£2,212.16",Revenue,EE Ltd,0
South Ribble Borough Council,http://statistics.data.gov.uk/id/local-authority/30UE,Central Support Services,Telecomms - Mobile,4260,,08/02/2023,0000485154,"£17,820.00",Revenue,EE Payment Processing,0
South Ribble Borough Council,http://statistics.data.gov.uk/id/local-authority/30UE,Local Tax Collection,Stationery General,4130,"Envelopes for Council Tax, 10,000 as per your ref 560126-1",15/02/2023,0000484643,£460.00,Revenue,Encore Envelopes Limited,0
South Ribble Borough Council,http://statistics.data.gov.uk/id/local-authority/30UE,Central Support Services,Materials General,4040,"Drivers Seat, VIN REDACTED",08/02/2023,0000485027,£300.00,Revenue,Euro Municipals Ltd,0
South Ribble Borough Council,http://statistics.data.gov.uk/id/local-authority/30UE,Homelessness,Contributions to Other Bodies,4730,"£2,310.00 to Excel Housing Solutions for temporary accommodation in Southport – ADDRESS REDACTED",08/02/2023,0000485049,"£2,310.00",Revenue,Excel Housing Solutions,0
South Ribble Borough Council,http://statistics.data.gov.uk/id/local-authority/30UE,Central Support Services,Materials General,4040,9 x all blade cylinders- BIN1293,01/02/2023,0000484245,£668.49,Revenue,F R SHARROCK LTD,0
South Ribble Borough Council,http://statistics.data.gov.uk/id/local-authority/30UE,Central Support Services,Materials General,4040,9 x all blade cylinders- BIN1293,01/02/2023,0000484381,£334.25,Revenue,F R SHARROCK LTD,0
South Ribble Borough Council,http://statistics.data.gov.uk/id/local-authority/30UE,Central Support Services,Materials General,4040,"Drive motor seal kit, PO19 FDU, JFC 19289",22/02/2023,0000485052,£348.87,Revenue,F R SHARROCK LTD,0
South Ribble Borough Council,http://statistics.data.gov.uk/id/local-authority/30UE,Waste Collection,External Contractors Charges,4570,Uplift in pricing 01/04/2022 - 12/06/2022,01/02/2023,0000484692,"£22,935.69",Revenue,FCC Environment Services (UK) Ltd,0
South Ribble Borough Council,http://statistics.data.gov.uk/id/local-authority/30UE,Capital,Cap Contract Payment,C230,"REF inv 8400 dated July 2022 and NAME REDACTED request., Professional Services Field Change Request Easement to Cadent Gas Ltd to i",15/02/2023,0000484915,£300.00,Revenue,FIELDS IN TRUST,0
South Ribble Borough Council,http://statistics.data.gov.uk/id/local-authority/30UE,Central Support Services,Materials General,4040,FOOTBALL PITCH LINE MARKER PAINT 10LTRS,01/02/2023,0000484696,£511.68,Revenue,Fleet Line Markers Limited,0
South Ribble Borough Council,http://statistics.data.gov.uk/id/local-authority/30UE,Service Management & Support,Petrol,3131,Fees for new fuel cards,15/02/2023,0000485233,£600.00,Revenue,Fuel Card Services,0
South Ribble Borough Council,http://statistics.data.gov.uk/id/local-authority/30UE,Open Spaces,GM Refurbishment,4657,Supply and installation of Goal post storage container for Gregson lane playing pitches,22/02/2023,0000485298,"£4,045.00",Revenue,G S F (Lancs) Ltd,0
South Ribble Borough Council,http://statistics.data.gov.uk/id/local-authority/30UE,Central Support Services,Materials General,4040,SLIDE BEARING 1000565 (BIN G059),22/02/2023,0000485467,£177.30,Revenue,GEESINK NORBA LTD,0
South Ribble Borough Council,http://statistics.data.gov.uk/id/local-authority/30UE,Central Support Services,Materials General,4040,EUROVIM BIN LIFT ARM PIVOT PIN SEAL 1000440 (BIN G060),22/02/2023,0000485467,£53.22,Revenue,GEESINK NORBA LTD,0
South Ribble Borough Council,http://statistics.data.gov.uk/id/local-authority/30UE,Central Support Services,Materials General,4040,EUROVIM BIN LIFT ARM PIVOT PIN 1002616 (BIN G061),22/02/2023,0000485467,£273.86,Revenue,GEESINK NORBA LTD,0
South Ribble Borough Council,http://statistics.data.gov.uk/id/local-authority/30UE,Central Support Services,Legal,4821,Cuerdan Garden Village-Advising in Consultation - 3hrs prep and duration-Tas,01/02/2023,0000484895,"£1,050.00",Revenue,Giles Cannock,0
South Ribble Borough Council,http://statistics.data.gov.uk/id/local-authority/30UE,Housing Advice,Contributions to Other Bodies,4730,AFFORDABLE WARMTH SCHEME FOR BOILER REPLACEMENT AT ADDRESS REDACTED AS PER YOUR QUOTE SUPPLIED OF £1580.00,08/02/2023,0000485055,"£1,580.00",Revenue,Gordon Innes,0
South Ribble Borough Council,http://statistics.data.gov.uk/id/local-authority/30UE,Capital,Cap Contract Payment,C230,"This is for the urgent replacement of the boiler @ Kingsfold community centre. As per quote dated 20.10.2022, , 1.	Prelims	£ 350.",01/02/2023,0000483413,"£17,797.16",Revenue,GOS Heating Ltd,0
South Ribble Borough Council,http://statistics.data.gov.uk/id/local-authority/30UE,Housing Advice,Contributions to Other Bodies,4730,AFFORDABLE WARMTH SCHEME FOR GAS REPAIRS AND SERVICE AT ADDRESS REDACTED AS PER QUOTE SUPPLIED OF £648.56( INC VAT),01/02/2023,0000484825,£540.47,Revenue,GOS Heating Ltd,0
South Ribble Borough Council,http://statistics.data.gov.uk/id/local-authority/30UE,Recreation & Sport,Reactive Repair & Maintenance,2020,"Kingsfold community center-, , to install a 1200mm x 600mm T22 radiator in the entranceway of the community centre. , , Price: £7",01/02/2023,0000484832,£738.80,Revenue,GOS Heating Ltd,0
South Ribble Borough Council,http://statistics.data.gov.uk/id/local-authority/30UE,Capital,Cap Contract Payment,C230,Consultancy Services - McKenzie Arms,01/02/2023,0000484394,"£1,793.51",Revenue,Gosling Consulting Limited,0
South Ribble Borough Council,http://statistics.data.gov.uk/id/local-authority/30UE,Capital,Cap Contract Payment,C230,Leyland Town Deal Project - Procurement Strategy - Stage 2,01/02/2023,0000484754,"£3,140.00",Revenue,Gosling Consulting Limited,0
South Ribble Borough Council,http://statistics.data.gov.uk/id/local-authority/30UE,Central Support Services,Materials General,4040,1002029 - GRAFFITI REMOVER TRANSGEL (5 LITRE),01/02/2023,0000484848,£423.00,Revenue,Graffiti Removal Ltd,0
South Ribble Borough Council,http://statistics.data.gov.uk/id/local-authority/30UE,Economic Development,External Audit Fees,4512,Compliance Audit 2021/22,08/02/2023,0000485056,"£5,500.00",Revenue,Grant Thornton UK LLP,0
South Ribble Borough Council,http://statistics.data.gov.uk/id/local-authority/30UE,Corporate Management,External Audit Fees,4512,2020/21 External Audit. Additional audit fees now approved by PSAA.,22/02/2023,0000485361,"£55,908.00",Revenue,Grant Thornton UK LLP,0
South Ribble Borough Council,http://statistics.data.gov.uk/id/local-authority/30UE,Surplus or Deficit on Trading,Reactive Repair & Maintenance,2020,"For toilets on Worden Park as per NAME REDACTED request , Windows in cubicles 1 & 2 have been broken (cracked at this stage, not smashed)",08/02/2023,0000485057,"£1,726.50",Revenue,Healthmatic Limited,0
South Ribble Borough Council,http://statistics.data.gov.uk/id/local-authority/30UE,Short Term Creditors,Amount Received,0140,,22/02/2023,0000484382,£460.00,Revenue,HM REVENUE & CUSTOMS,0
South Ribble Borough Council,http://statistics.data.gov.uk/id/local-authority/30UE,Short Term Creditors,Amount Received,0140,,22/02/2023,0000484664,£374.00,Revenue,HM REVENUE & CUSTOMS,0
South Ribble Borough Council,http://statistics.data.gov.uk/id/local-authority/30UE,Short Term Creditors,Amount Received,0140,,22/02/2023,0000484972,£336.00,Revenue,HM REVENUE & CUSTOMS,0
South Ribble Borough Council,http://statistics.data.gov.uk/id/local-authority/30UE,Elections,Electoral Administration Act,4970,AS ABOVE - 50% DUE AT END OF CAVASS,01/02/2023,0000484206,"£2,971.11",Revenue,IDOX PLC,0
South Ribble Borough Council,http://statistics.data.gov.uk/id/local-authority/30UE,Elections,Electoral Administration Act,4970,Elections Admin Training – 2 February 2023 -NAMES REDACTED,08/02/2023,0000485058,£450.00,Revenue,IDOX PLC,0
South Ribble Borough Council,http://statistics.data.gov.uk/id/local-authority/30UE,Central Support Services,Software Licensing,4243,"Elections Annuual Payment , , Reference: 3502049SOU009160123, , Eros network licence - Annual support & maintenance	£6,998.99, Er",22/02/2023,0000485381,"£16,228.05",Revenue,IDOX PLC,0
South Ribble Borough Council,http://statistics.data.gov.uk/id/local-authority/30UE,Street Cleansing,Hiring Expenses,3212,"3.5T Tipper , On hire 10.1.23 to 31.1.23",15/02/2023,0000485191,"£1,199.67",Revenue,Intack Self Drive Ltd,0
South Ribble Borough Council,http://statistics.data.gov.uk/id/local-authority/30UE,Open Spaces,GM Refurbishment,4657,Additional works to ADDRESS REDACTED  3D Flythrough,01/02/2023,0000484849,"£1,750.00",Revenue,Ivan Wilson Architect,0
South Ribble Borough Council,http://statistics.data.gov.uk/id/local-authority/30UE,Central Support Services,Materials General,4040,"Spring, VIN REDACTED",08/02/2023,0000484669,£395.00,Revenue,JAMES HART (CHORLEY) LTD,0
South Ribble Borough Council,http://statistics.data.gov.uk/id/local-authority/30UE,Central Support Services,Materials General,4040,1 VALVE VIN REDACTED,08/02/2023,0000484729,£310.00,Revenue,JAMES HART (CHORLEY) LTD,0
South Ribble Borough Council,http://statistics.data.gov.uk/id/local-authority/30UE,Central Support Services,Materials General,4040,"MPV Valve, VIN REDACTED",08/02/2023,0000484757,£265.00,Revenue,JAMES HART (CHORLEY) LTD,0
South Ribble Borough Council,http://statistics.data.gov.uk/id/local-authority/30UE,Central Support Services,Materials General,4040,MPV filter,08/02/2023,0000484757,£32.00,Revenue,JAMES HART (CHORLEY) LTD,0
South Ribble Borough Council,http://statistics.data.gov.uk/id/local-authority/30UE,Central Support Services,Materials General,4040,Compressor VIN REDACTED,08/02/2023,0000484912,"£1,090.00",Revenue,JAMES HART (CHORLEY) LTD,0
South Ribble Borough Council,http://statistics.data.gov.uk/id/local-authority/30UE,Central Support Services,Materials General,4040,"Brake valve, VIN REDACTED",08/02/2023,0000485028,£395.00,Revenue,JAMES HART (CHORLEY) LTD,0
South Ribble Borough Council,http://statistics.data.gov.uk/id/local-authority/30UE,Central Support Services,Materials General,4040,"4 Way Safety valve, VIN REDACTED",15/02/2023,0000485215,£395.00,Revenue,JAMES HART (CHORLEY) LTD,0
South Ribble Borough Council,http://statistics.data.gov.uk/id/local-authority/30UE,Central Support Services,Materials General,4040,"Bracket, Blank M22x1.5, 2 way valve, VIN REDACTED",15/02/2023,0000485215,£81.95,Revenue,JAMES HART (CHORLEY) LTD,0
South Ribble Borough Council,http://statistics.data.gov.uk/id/local-authority/30UE,Central Support Services,External Contractors Charges,4570,"Spec Repair- Labour cost, VIN REDACTED",15/02/2023,0000485215,£583.00,Revenue,JAMES HART (CHORLEY) LTD,0
South Ribble Borough Council,http://statistics.data.gov.uk/id/local-authority/30UE,Surplus or Deficit on Trading,Planned Annual Repair & Maintenance,2021,"Annual Contract for 2022 - 2023 for the maintenance of the Trend BMS HVAC 4 x day visits (TBA) June, Sept, Dec, March - at the Ci",01/02/2023,0000484702,£445.00,Revenue,JBC CONTROL SYSTEM,0
South Ribble Borough Council,http://statistics.data.gov.uk/id/local-authority/30UE,Central Support Services,Miscellaneous Expenses,4851,Advertising of Senior Solicitor role - boosted advert,22/02/2023,0000485430,"£1,200.00",Revenue,JOBSGOPUBLIC,0
South Ribble Borough Council,http://statistics.data.gov.uk/id/local-authority/30UE,Open Spaces,Materials General,4040,"Treated Sawn Softwoods											, 											, 42 x 1.8mx150mmx75mm @ £9.11ea",08/02/2023,0000484758,£382.62,Revenue,JOHN HY MAYOR & SONS LTD,0
South Ribble Borough Council,http://statistics.data.gov.uk/id/local-authority/30UE,Open Spaces,Materials General,4040,"84x 3.6m	x75mmx50mm @£6.08ea",08/02/2023,0000484758,£510.72,Revenue,JOHN HY MAYOR & SONS LTD,0
South Ribble Borough Council,http://statistics.data.gov.uk/id/local-authority/30UE,Capital,Cap Contract Payment,C230,Costs for work on the refurbishment of Worden Hall Central Buildings,22/02/2023,0000484211,"£176,119.16",Revenue,John Turner Construction Group Ltd,0
South Ribble Borough Council,http://statistics.data.gov.uk/id/local-authority/30UE,Open Spaces,Hiring Expenses,3212,"End of Hire 5/1/23 - 18/1/23 = 2 weeks @ £38.40/week = £76.80, 8 damaged panels @ £30 each = £240",01/02/2023,0000484822,£316.80,Revenue,John Wade Groundworks Ltd t/a Wade Group,0
South Ribble Borough Council,http://statistics.data.gov.uk/id/local-authority/30UE,Capital,Cap Contract Payment,C230,"1298/TCCP - Tennis Centre Car Park As per NAME REDACTED to cover invoice 4436, As per valuation sent on 8th December 2021., Origina",15/02/2023,0000484913,"£2,215.98",Revenue,John Wade Groundworks Ltd t/a Wade Group,0
South Ribble Borough Council,http://statistics.data.gov.uk/id/local-authority/30UE,Open Spaces,Hiring Expenses,3212,"Withy Grove Fencing Collection Charge, Collection as outlined on original invoice #4640",08/02/2023,0000485017,£360.00,Revenue,John Wade Groundworks Ltd t/a Wade Group,0
South Ribble Borough Council,http://statistics.data.gov.uk/id/local-authority/30UE,Open Spaces,Hiring Expenses,3212,"1 x day hire, Leguan 19m Tracked access platform with trailer, 23rd Jan 2023",15/02/2023,0000485060,£560.00,Revenue,K H HIRE SERVICES,0
South Ribble Borough Council,http://statistics.data.gov.uk/id/local-authority/30UE,Central Support Services,Clothing and Uniforms,4410,GLOVES - WINTER HV EN388 2.2.4.3 SIZE 8-A185,01/02/2023,0000484704,£99.40,Revenue,KEY ENGINEERING & HYGIENE SUPPLIES LTD,0
South Ribble Borough Council,http://statistics.data.gov.uk/id/local-authority/30UE,Central Support Services,Clothing and Uniforms,4410,GLOVES - WINTER HV EN388 2.2.4.3 SIZE 9-A185,01/02/2023,0000484704,£142.00,Revenue,KEY ENGINEERING & HYGIENE SUPPLIES LTD,0
South Ribble Borough Council,http://statistics.data.gov.uk/id/local-authority/30UE,Central Support Services,Clothing and Uniforms,4410,GLOVES - WINTER HV EN388 2.2.4.3 SIZE 10-A185,01/02/2023,0000484704,£142.00,Revenue,KEY ENGINEERING & HYGIENE SUPPLIES LTD,0
South Ribble Borough Council,http://statistics.data.gov.uk/id/local-authority/30UE,Central Support Services,Clothing and Uniforms,4410,GLOVE PRED RED PUPL-8-J1PUPL/8,01/02/2023,0000484704,£44.00,Revenue,KEY ENGINEERING & HYGIENE SUPPLIES LTD,0
South Ribble Borough Council,http://statistics.data.gov.uk/id/local-authority/30UE,Central Support Services,Clothing and Uniforms,4410,WELLINGTONS – SIZE 11-WEL/S5,01/02/2023,0000484704,£11.22,Revenue,KEY ENGINEERING & HYGIENE SUPPLIES LTD,0
South Ribble Borough Council,http://statistics.data.gov.uk/id/local-authority/30UE,Central Support Services,Clothing and Uniforms,4410,HI VIS Yellow Traffic fleece SMALL with coloured SRBC logo embroidered on LH breast F300,08/02/2023,0000484897,£145.74,Revenue,KEY ENGINEERING & HYGIENE SUPPLIES LTD,0
South Ribble Borough Council,http://statistics.data.gov.uk/id/local-authority/30UE,Central Support Services,Clothing and Uniforms,4410,HI VIS Yellow Traffic fleece MEDIUM with coloured SRBC logo embroidered on LH breast F300,08/02/2023,0000484897,£48.58,Revenue,KEY ENGINEERING & HYGIENE SUPPLIES LTD,0
South Ribble Borough Council,http://statistics.data.gov.uk/id/local-authority/30UE,Central Support Services,Clothing and Uniforms,4410,HI VIS Yellow Traffic fleece LARGE with coloured SRBC logo embroidered on LH breast F300,08/02/2023,0000484897,£97.16,Revenue,KEY ENGINEERING & HYGIENE SUPPLIES LTD,0
South Ribble Borough Council,http://statistics.data.gov.uk/id/local-authority/30UE,Central Support Services,Clothing and Uniforms,4410,HI VIS Yellow Traffic fleece XXL with coloured SRBC logo embroidered on LH breast F300,08/02/2023,0000484897,£48.58,Revenue,KEY ENGINEERING & HYGIENE SUPPLIES LTD,0
South Ribble Borough Council,http://statistics.data.gov.uk/id/local-authority/30UE,Central Support Services,Clothing and Uniforms,4410,HI VIS POLO (SHORT SLEEVED) - LARGE c/w SRBC LOGO FRONT LEFT BREAST & REAR HS COLOUR S477,08/02/2023,0000484897,£59.88,Revenue,KEY ENGINEERING & HYGIENE SUPPLIES LTD,0
South Ribble Borough Council,http://statistics.data.gov.uk/id/local-authority/30UE,Central Support Services,Clothing and Uniforms,4410,GLOVES - WINTER HV EN388 2.2.4.3 SIZE 8 A185,08/02/2023,0000484899,£42.60,Revenue,KEY ENGINEERING & HYGIENE SUPPLIES LTD,0
South Ribble Borough Council,http://statistics.data.gov.uk/id/local-authority/30UE,Central Support Services,Clothing and Uniforms,4410,FLEECE NAVY - EXTRA LARGE c/w SRBC LOGO Front Left Breast in White EMB UC601,08/02/2023,0000484899,£47.20,Revenue,KEY ENGINEERING & HYGIENE SUPPLIES LTD,0
South Ribble Borough Council,http://statistics.data.gov.uk/id/local-authority/30UE,Central Support Services,Clothing and Uniforms,4410,BALLISTIC TROUSERS NAVY 38`` SHORT ORN2900,08/02/2023,0000484899,£112.75,Revenue,KEY ENGINEERING & HYGIENE SUPPLIES LTD,0
South Ribble Borough Council,http://statistics.data.gov.uk/id/local-authority/30UE,Central Support Services,Clothing and Uniforms,4410,POLO SHIRT LONG SLEEVED NAVY - MEDIUM c/w SRBC LOGO FRONT LEFT BREAST HS WHITE UC113,08/02/2023,0000484899,£27.52,Revenue,KEY ENGINEERING & HYGIENE SUPPLIES LTD,0
South Ribble Borough Council,http://statistics.data.gov.uk/id/local-authority/30UE,Central Support Services,Clothing and Uniforms,4410,HI VIS TRAFFIC JACKET YELLOW EN471:2003 LARGE WITH SRBC Logo Front Left Breast & Rear HS in COLOUR S460,08/02/2023,0000484899,£96.50,Revenue,KEY ENGINEERING & HYGIENE SUPPLIES LTD,0
South Ribble Borough Council,http://statistics.data.gov.uk/id/local-authority/30UE,Central Support Services,Clothing and Uniforms,4410,FLEECE NAVY - LARGE c/w SRBC LOGO Front Left Breast in White EMB UC601,08/02/2023,0000484899,£59.00,Revenue,KEY ENGINEERING & HYGIENE SUPPLIES LTD,0
South Ribble Borough Council,http://statistics.data.gov.uk/id/local-authority/30UE,Central Support Services,Clothing and Uniforms,4410,WATERPROOF MOUNTAIN CAPS BB355 pluss logo`s@ £1,08/02/2023,0000484899,£162.00,Revenue,KEY ENGINEERING & HYGIENE SUPPLIES LTD,0
South Ribble Borough Council,http://statistics.data.gov.uk/id/local-authority/30UE,Central Support Services,Clothing and Uniforms,4410,HI VIS TRAFFIC JACKET YELLOW EN471:2003 MEDIUM WITH SRBC Logo Front Left Breast & Rear HS in COLOUR S460,08/02/2023,0000484899,£38.60,Revenue,KEY ENGINEERING & HYGIENE SUPPLIES LTD,0
South Ribble Borough Council,http://statistics.data.gov.uk/id/local-authority/30UE,Central Support Services,Clothing and Uniforms,4410,HI VIS Yellow Traffic fleece MEDIUM with coloured SRBC logo embroidered on LH breast F300,08/02/2023,0000484899,£48.58,Revenue,KEY ENGINEERING & HYGIENE SUPPLIES LTD,0
South Ribble Borough Council,http://statistics.data.gov.uk/id/local-authority/30UE,Central Support Services,Clothing and Uniforms,4410,HI VIZ VULTURE BALLISTIC TROUSERS (36) REGULAR YELLOW-ORN6900,08/02/2023,0000484899,£55.52,Revenue,KEY ENGINEERING & HYGIENE SUPPLIES LTD,0
South Ribble Borough Council,http://statistics.data.gov.uk/id/local-authority/30UE,Capital,Cap Contract Payment,C230,Boost Fund Plus - Base 11 Community Centre - renovation of two other vacant retail units,15/02/2023,0000485302,"£34,545.00",Revenue,KEY UNLOCKING FUTURES LTD,0
South Ribble Borough Council,http://statistics.data.gov.uk/id/local-authority/30UE,Regulatory Services,Poisons & Baits,4041,6 No CHAMELEON 1X2 WHITE CHA1X2014 @ £99.00,15/02/2023,0000484067,£574.74,Revenue,KILLGERM CHEMICALS LTD,0
South Ribble Borough Council,http://statistics.data.gov.uk/id/local-authority/30UE,Regulatory Services,Poisons & Baits,4041,6 X FREE STANDING BRACKET EF305STAND @ £8.00,15/02/2023,0000484067,£48.60,Revenue,KILLGERM CHEMICALS LTD,0
South Ribble Borough Council,http://statistics.data.gov.uk/id/local-authority/30UE,Regulatory Services,Poisons & Baits,4041,2 x Vertox 10kg Tubs VERTWW010K @ £63.00,22/02/2023,0000485063,£126.00,Revenue,KILLGERM CHEMICALS LTD,0
South Ribble Borough Council,http://statistics.data.gov.uk/id/local-authority/30UE,Regulatory Services,Poisons & Baits,4041,40 x Big Snap E Rat Trap - SNAPERAT @ £2.15,22/02/2023,0000485063,£91.60,Revenue,KILLGERM CHEMICALS LTD,0
South Ribble Borough Council,http://statistics.data.gov.uk/id/local-authority/30UE,Regulatory Services,Poisons & Baits,4041,1 Box 10 x 10g Sachets CYTROL FORTE W - CYTROSACH,22/02/2023,0000485063,£50.40,Revenue,KILLGERM CHEMICALS LTD,0
South Ribble Borough Council,http://statistics.data.gov.uk/id/local-authority/30UE,Surplus or Deficit on Trading,Rents,2401,payment for qtr 25/12/22,01/02/2023,0000483855,"£16,147.50",Revenue,L2 Property Limited,0
South Ribble Borough Council,http://statistics.data.gov.uk/id/local-authority/30UE,Surplus or Deficit on Trading,Rents,2401,less ground rent,01/02/2023,0000483855,"-£2,850.00",Revenue,L2 Property Limited,0
South Ribble Borough Council,http://statistics.data.gov.uk/id/local-authority/30UE,Surplus or Deficit on Trading,Rents,2401,rent o/s from qtr 29/9/22,01/02/2023,0000483855,£340.02,Revenue,L2 Property Limited,0
South Ribble Borough Council,http://statistics.data.gov.uk/id/local-authority/30UE,Central Support Services,Materials General,4040,"4,000 Litres Adblue @ 0.89ppl",01/02/2023,0000484627,"£2,670.00",Revenue,LANCASHIRE OILS LTD,0
South Ribble Borough Council,http://statistics.data.gov.uk/id/local-authority/30UE,Waste Collection,Clinical Waste Disposal,5112,June 2022 - Incineration of clinical waste,01/02/2023,0000484667,£702.17,Revenue,LANCASHIRE TEACHING FT,0
South Ribble Borough Council,http://statistics.data.gov.uk/id/local-authority/30UE,Waste Collection,Clinical Waste Disposal,5112,August 2022 - Incineration of clinical waste.,01/02/2023,0000484728,£688.70,Revenue,LANCASHIRE TEACHING FT,0
South Ribble Borough Council,http://statistics.data.gov.uk/id/local-authority/30UE,Waste Collection,Clinical Waste Disposal,5112,July 2022 - Incineration of clinical waste,01/02/2023,0000484763,£638.56,Revenue,LANCASHIRE TEACHING FT,0
South Ribble Borough Council,http://statistics.data.gov.uk/id/local-authority/30UE,Waste Collection,Clinical Waste Disposal,5112,September 2022 - Incineration of clinical waste.,01/02/2023,0000484764,£529.06,Revenue,LANCASHIRE TEACHING FT,0
South Ribble Borough Council,http://statistics.data.gov.uk/id/local-authority/30UE,Culture & Heritage,Professional Fees,4510,"Registration fee for ceremonies at Worden Hall, Leyland. Initial registration of the Barn room for ceremonies and lawn to the sou",01/02/2023,0000484435,£500.00,Revenue,LANCS COUNTY COUNCIL,0
South Ribble Borough Council,http://statistics.data.gov.uk/id/local-authority/30UE,Local Land Charges,L C C General,4530,LAND CHARGES - NOVEMBER 2022,08/02/2023,0000485022,£608.00,Revenue,LANCS COUNTY COUNCIL,0
South Ribble Borough Council,http://statistics.data.gov.uk/id/local-authority/30UE,Local Land Charges,L C C General,4530,LAND CHARGES - DECEMBER 2022,08/02/2023,0000485022,£628.00,Revenue,LANCS COUNTY COUNCIL,0
South Ribble Borough Council,http://statistics.data.gov.uk/id/local-authority/30UE,Culture & Heritage,Maintenance & Repair,4013,"Museum Technical work for South Ribble Museum - Leyland, Provided by: Lancashire Conservation Studios, Moving four Click-Netherfi",15/02/2023,0000485251,£426.30,Revenue,LANCS COUNTY COUNCIL,0
South Ribble Borough Council,http://statistics.data.gov.uk/id/local-authority/30UE,Local Land Charges,L C C General,4530,LAND CHARGES - JANUARY 2023,15/02/2023,0000485287,£900.00,Revenue,LANCS COUNTY COUNCIL,0
South Ribble Borough Council,http://statistics.data.gov.uk/id/local-authority/30UE,Community Development,Professional Fees,4510,"Holiday activities for HAF summer programme for SRBC. 29 July to 26 August. , Please note this will go into the General County Fu",22/02/2023,0000485556,"£4,900.00",Revenue,LANCS COUNTY COUNCIL,0
South Ribble Borough Council,http://statistics.data.gov.uk/id/local-authority/30UE,Central Support Services,Materials General,4040,"1x air bag, VIN REDACTED",01/02/2023,0000484684,£383.00,Revenue,LANCS DAF,0
South Ribble Borough Council,http://statistics.data.gov.uk/id/local-authority/30UE,Central Support Services,Materials General,4040,EGR Pipe VIN REDACTED,01/02/2023,0000484855,£297.16,Revenue,LANCS DAF,0
South Ribble Borough Council,http://statistics.data.gov.uk/id/local-authority/30UE,Central Support Services,Materials General,4040,"1x filter kit, 2x anti roll bar bushes, 2x steering lock stopper, VIN REDACTED",15/02/2023,0000485140,£602.24,Revenue,LANCS DAF,0
South Ribble Borough Council,http://statistics.data.gov.uk/id/local-authority/30UE,Central Support Services,Materials General,4040,"Rear air bg, VIN REDACTED",15/02/2023,0000485386,£325.00,Revenue,LANCS DAF,0
South Ribble Borough Council,http://statistics.data.gov.uk/id/local-authority/30UE,Democratic Represent and  Mgnt,Members Subsistence,4621,PLEASE PROVIDE INTERPRETING SERVICES ON 6 MAY 2022 AT 9:30 AM (2.5 HRS) FOR MEETING WITH TWIN TOWN GERMAN TO ENGLISH,01/02/2023,0000484671,£480.00,Revenue,Language Insight Ltd,0
South Ribble Borough Council,http://statistics.data.gov.uk/id/local-authority/30UE,Capital,Cap Contract Payment,C230,For the provision of all Design and Construction arising from the Proposed new 2nr x 106.00m x 70m Football 3G Artificial Grass P,03/02/2023,0000482922,"£35,064.33",Revenue,LANO SPORTS NV,0
South Ribble Borough Council,http://statistics.data.gov.uk/id/local-authority/30UE,Open Spaces,Miscellaneous Expenses,4851,"4 X Reservoir safety posts as per NAME REDACTED request for the Penwortham Hill Reservoir adjacent to Vernon Carus site , 4 x Safet",15/02/2023,0000485129,£577.56,Revenue,LCC SIGN SHOP,0
South Ribble Borough Council,http://statistics.data.gov.uk/id/local-authority/30UE,Community Development,Core Fund,4861,Phase 2 Broadfield Community Development – Autumn 2022,15/02/2023,0000485061,"£3,000.00",Revenue,Lets Grow Preston,0
South Ribble Borough Council,http://statistics.data.gov.uk/id/local-authority/30UE,Central Support Services,Reference Books,4142,Okes Magisterial Formulist 20ED loose leaf,22/02/2023,0000485435,"£1,576.99",Revenue,LEXISNEXIS BUTTERWORTHS,0
South Ribble Borough Council,http://statistics.data.gov.uk/id/local-authority/30UE,Central Support Services,Reference Books,4142,Patersons Licensing Act 2023 and CD set,22/02/2023,0000485436,£200.84,Revenue,LEXISNEXIS BUTTERWORTHS,0
South Ribble Borough Council,http://statistics.data.gov.uk/id/local-authority/30UE,Central Support Services,Reference Books,4142,,22/02/2023,0000485436,£189.15,Revenue,LEXISNEXIS BUTTERWORTHS,0
South Ribble Borough Council,http://statistics.data.gov.uk/id/local-authority/30UE,Central Support Services,Reference Books,4142,delivery,22/02/2023,0000485436,£7.00,Revenue,LEXISNEXIS BUTTERWORTHS,0
South Ribble Borough Council,http://statistics.data.gov.uk/id/local-authority/30UE,Capital,Cap Contract Payment,C230,This is to finish off the palisade fencing and fit a lockable security gate stopping public access to the floodgate at the top of,22/02/2023,0000485482,"£3,345.00",Revenue,Leyland Lane Wrought Iron Gates & Railings,0
South Ribble Borough Council,http://statistics.data.gov.uk/id/local-authority/30UE,Community Development,Room Hire,2402,"Summer HAF Venue Hire, , Sports Hall, 09:00 - 13:00, Tue 26/07/2022 (Booking # KW1SN4) £165.84, Sports Hall, 09:00 - 13:00, Wed 2",01/02/2023,0000484721,£497.52,Revenue,LEYLAND ST MARYS CATHOLIC TECH COLLEGE,0
South Ribble Borough Council,http://statistics.data.gov.uk/id/local-authority/30UE,Culture & Heritage,Operational Equip & Tools,4010,"STAS cliprail max white 2m hanging rail – 10130 – qty 3 - £14.74ea - £44.22; , , STAS fixing buttons brass pk10 – 5822 – qty 4 - ",01/02/2023,0000484647,£349.26,Revenue,Lion Picture Framing Supplies,0
South Ribble Borough Council,http://statistics.data.gov.uk/id/local-authority/30UE,Capital,Capital Grant,C570,DFG WORK FOR ADAPTATION FOR LEVEL ACCESS SHOWER AT ADDRESS REDACTED AS PER SRBC PLANS AND QUOTE SUPPLIED OF £5720.,22/02/2023,0000485545,"£5,720.96",Revenue,LTL CONSTRUCTION & MAINTENANCE LTD,0
South Ribble Borough Council,http://statistics.data.gov.uk/id/local-authority/30UE,Capital,Capital Grant,C570,DFG WORKS FOR LEVEL ACCESS BATHROOM AT ADDRESS REDACTED NEW PROGRESS PROPERTY SO 50% OF TOTAL QUOTE TO BE PAID TOTAL,01/02/2023,0000484646,"£3,969.02",Revenue,MAHONEY CONTRACTORS LTD,0
South Ribble Borough Council,http://statistics.data.gov.uk/id/local-authority/30UE,Capital,Capital Grant,C570,DFG WORKS FOR LEVEL ACCESS BATHROOM FLAT ADDRESS REDACTED NEW PROGRESS PROPERTY SO 50% OF TOTAL QUOTE TO BE ,01/02/2023,0000484650,"£2,753.08",Revenue,MAHONEY CONTRACTORS LTD,0
South Ribble Borough Council,http://statistics.data.gov.uk/id/local-authority/30UE,Capital,Capital Grant,C570,DFG WORKS FOR LEVEL ACCESS BATHROOM AND RAMP AT ADDRESS REDACTED. NEW PROGRESS PROPERTY SO 50% OF TOTAL QUOTE ,01/02/2023,0000484651,"£4,500.23",Revenue,MAHONEY CONTRACTORS LTD,0
South Ribble Borough Council,http://statistics.data.gov.uk/id/local-authority/30UE,Central Support Services,Legal,4821,Delivery of Affordable at Penwortham-Further advice,15/02/2023,0000485295,£450.00,Revenue,MARTIN CARTER,0
South Ribble Borough Council,http://statistics.data.gov.uk/id/local-authority/30UE,Recreation & Sport,Reactive Repair & Maintenance,2020,To replace ALL ridge tiles from higher and lower lever roofs. Replacing with a new dry ridge system. Following several leaks and ,08/02/2023,0000484994,"£8,500.00",Revenue,Mick Bamber,0
South Ribble Borough Council,http://statistics.data.gov.uk/id/local-authority/30UE,Surplus or Deficit on Trading,Reactive Repair & Maintenance,2020,"ESTIMATE NO. 1218 DATE 22/11/2022, Worden Park, Red frog, Erect scaffolding, Replace lead work to chimney as per NAME REDACTED request",08/02/2023,0000484995,"£3,200.00",Revenue,Mick Bamber,0
South Ribble Borough Council,http://statistics.data.gov.uk/id/local-authority/30UE,Central Support Services,External Contractors Charges,4570,Vehicle Recovery from Matrix Point to Moss Side Depot (Brakes stuck on) VIN REDACTED,01/02/2023,0000484741,£490.96,Revenue,MILLERS OF LONGTON LTD,0
South Ribble Borough Council,http://statistics.data.gov.uk/id/local-authority/30UE,Central Support Services,External Contractors Charges,4570,"Spec Repair- to supply and fit camera, VIN REDACTED",15/02/2023,0000485134,£240.00,Revenue,MJC Auto Electrics,0
South Ribble Borough Council,http://statistics.data.gov.uk/id/local-authority/30UE,Central Support Services,External Contractors Charges,4570,"Speci Repair- Labour only for fitting camera, VIN REDACTED",15/02/2023,0000485134,£60.00,Revenue,MJC Auto Electrics,0
South Ribble Borough Council,http://statistics.data.gov.uk/id/local-authority/30UE,Elections,Polling Centre Costs,4421,"Sales Quotation MODERNPOLLSC00010, Modern Polling – Year 1 (on order)",08/02/2023,0000484766,"£37,100.00",Revenue,Modern Democracy Limited,0
South Ribble Borough Council,http://statistics.data.gov.uk/id/local-authority/30UE,Elections,Polling Centre Costs,4421,delivery,08/02/2023,0000484766,£300.00,Revenue,Modern Democracy Limited,0
South Ribble Borough Council,http://statistics.data.gov.uk/id/local-authority/30UE,Central Support Services,Legal,4821,"Land at Former Lostock Hall, Avondale Drive-advice",22/02/2023,0000485437,"£1,125.00",Revenue,Mr Alan Evans,0
South Ribble Borough Council,http://statistics.data.gov.uk/id/local-authority/30UE,Regulatory Services,Legal,4821,Barrister fees - Penwortham Residential Park - ongoing licensing issues,01/02/2023,0000484676,£393.75,Revenue,Mr Leo Charalambides,0
South Ribble Borough Council,http://statistics.data.gov.uk/id/local-authority/30UE,Capital,Capital Grant,C570,DFG WORK FOR ADAPTATION FOR LEVEL ACCS/RAMP AND TFL WORK AT ADDRESS REDACTED AS PER SRBC PLANS AND QUOTE SUPPLIED OF £110,22/02/2023,0000485546,"£10,219.73",Revenue,MSG Building and Construction Ltd,0
South Ribble Borough Council,http://statistics.data.gov.uk/id/local-authority/30UE,Community Development,Core Fund,4861,"To supply:, , Lenovo V15-IGL Laptop, 15.6``, Celeron N4020, 8GB, 256GB SSD, No Optical or LAN, Windows 10 Home , , Canon PIXMA MG",22/02/2023,0000484707,£592.14,Revenue,MYPREMIER LTD,0
South Ribble Borough Council,http://statistics.data.gov.uk/id/local-authority/30UE,Development Control,Advertising,4841,Publication of planning publicity press notices in the LEP - April 2022 to March 2023,15/02/2023,0000485065,"£1,053.00",Revenue,National World Publishing Limited,0
South Ribble Borough Council,http://statistics.data.gov.uk/id/local-authority/30UE,Capital,Cap Contract Payment,C230,ADDRESS REDACTED,03/02/2023,0000479775,"£82,727.50",Revenue,NFM Iddon Limited C/O Chadwicks Solicitors,0
South Ribble Borough Council,http://statistics.data.gov.uk/id/local-authority/30UE,Central Support Services,Software Licensing,4243,DNS Call off charges,22/02/2023,0000484969,£765.94,Revenue,NOMINET UK,0
South Ribble Borough Council,http://statistics.data.gov.uk/id/local-authority/30UE,Central Support Services,Materials General,4040,CHANNEL BRUSH - 2.8 mm POLY & 3.3mm WIRE 5 row 700/1000mm - MIDI SWEEPER-78399/2,01/02/2023,0000484767,£889.14,Revenue,NORTHERN MUNICIPAL SPARES LTD,0
South Ribble Borough Council,http://statistics.data.gov.uk/id/local-authority/30UE,Central Support Services,Operational Equip & Tools,4010,Civic Centre - LS1830301 STANDARD LOCKER - 1800 x 300 x 300 - 1 Tier - 4 x £118.69 = £474.76 (DARK GREY) - requested by NAME REDACTED.,08/02/2023,0000485069,£474.76,Revenue,Northern Storage & Interiors Ltd,0
South Ribble Borough Council,http://statistics.data.gov.uk/id/local-authority/30UE,Economic Development,Investment & Improvement,485K,"Lancashire Business View Jan / Feb 2023 South Ribble Hotspots, , Quarter Page Advert , , The artwork for the piece must be a high",22/02/2023,0000484827,£850.00,Revenue,Northpoint Publishing Ltd,0
South Ribble Borough Council,http://statistics.data.gov.uk/id/local-authority/30UE,Parking Services,Parking Attendants,4514,"Variable Fee Car Park Enforcement , December 2022 - Variable Recharge Items",01/02/2023,0000484917,"£1,750.32",Revenue,NSL LTD,0
South Ribble Borough Council,http://statistics.data.gov.uk/id/local-authority/30UE,Parking Services,Parking Attendants,4514,"Variable Fee Car Park Enforcement , January 2023 - Variable Recharge Items",22/02/2023,0000485551,"£1,750.32",Revenue,NSL LTD,0
South Ribble Borough Council,http://statistics.data.gov.uk/id/local-authority/30UE,Central Support Services,Planned Annual Repair & Maintenance,2021,To provide gritting of areas on plan as per NAME REDACTED dated 12 Dec 2022 until further notice - estimated 20 visits at £135.00 ,22/02/2023,0000485445,£945.00,Revenue,Nurture Landscapes Ltd,0
South Ribble Borough Council,http://statistics.data.gov.uk/id/local-authority/30UE,Parking Services,Cash Collection Charges Car Parks,4855,RingGo Fee Transactions - January 2023,22/02/2023,0000485552,£110.50,Revenue,Park Now Limited,0
South Ribble Borough Council,http://statistics.data.gov.uk/id/local-authority/30UE,Parking Services,Cash Collection Charges Car Parks,4855,"RingGo Text Summary, Reminder & , Processing Fees - January 2023",22/02/2023,0000485552,£201.59,Revenue,Park Now Limited,0
South Ribble Borough Council,http://statistics.data.gov.uk/id/local-authority/30UE,Central Support Services,Consumable Clng Materials,2711,"Purchase Order needed to bring account up-to-date, PO`s needed as Patterson`s Invoiced without PO numbers. Invoices were rejected",01/02/2023,0000484548,£283.22,Revenue,Pattersons (Bristol) Ltd,0
South Ribble Borough Council,http://statistics.data.gov.uk/id/local-authority/30UE,Central Support Services,Consumable Clng Materials,2711,"AA201	JANGRO MICRO MINI TOILET ROLL 100M X 90MM 2 PLY (24), RECYCLED, 8 @ £11.70",15/02/2023,0000484624,£151.44,Revenue,Pattersons (Bristol) Ltd,0
South Ribble Borough Council,http://statistics.data.gov.uk/id/local-authority/30UE,Central Support Services,Consumable Clng Materials,2711,"AE234	BLUE TORK S-FOLD HAND TOWEL 1PLY (4000SHT), 8 @ £14.45",15/02/2023,0000484624,£214.96,Revenue,Pattersons (Bristol) Ltd,0
South Ribble Borough Council,http://statistics.data.gov.uk/id/local-authority/30UE,Central Support Services,Consumable Clng Materials,2711,"G412630	GLADE PACIFIC BREEZE 500ML AEROSOL , 1 @ £19.76",15/02/2023,0000484624,£20.40,Revenue,Pattersons (Bristol) Ltd,0
South Ribble Borough Council,http://statistics.data.gov.uk/id/local-authority/30UE,Central Support Services,Consumable Clng Materials,2711,"BG030-CG	GIANT AEROSOL AIR FRESHENER 750ML CITRUS BLAST, 1 @ £16.28",15/02/2023,0000484624,£9.18,Revenue,Pattersons (Bristol) Ltd,0
South Ribble Borough Council,http://statistics.data.gov.uk/id/local-authority/30UE,Central Support Services,Consumable Clng Materials,2711,"BB034-5	JANGRO CONCENTRATED FRAGRANCED GREEN DETERGENT IDEAL FOR MANUAL DISHWASHING & AS A GENERAL HARD SURFACE CLEANER, 20% 5LTR",15/02/2023,0000484624,£21.48,Revenue,Pattersons (Bristol) Ltd,0
South Ribble Borough Council,http://statistics.data.gov.uk/id/local-authority/30UE,Central Support Services,Consumable Clng Materials,2711,"BB080-5	JANGRO CHLORINATED DISHWASH DETERGENT FOR HARD WATER, LOW FOAMING FOR AUTOMATIC DISHWASHING MACHINES (5 LTR x 2), 3 @ £7.",15/02/2023,0000484624,£14.90,Revenue,Pattersons (Bristol) Ltd,0
South Ribble Borough Council,http://statistics.data.gov.uk/id/local-authority/30UE,Central Support Services,Consumable Clng Materials,2711,"BC040-1	JANGRO PERFUMED THICKENED TOILET CLEANER WITH A NEUTRAL PH FOR DAILY ROUTINE CLEANING OF WASHROOM SURFACES -1LTR, 36 @ £0",15/02/2023,0000484624,£35.28,Revenue,Pattersons (Bristol) Ltd,0
South Ribble Borough Council,http://statistics.data.gov.uk/id/local-authority/30UE,Central Support Services,Consumable Clng Materials,2711,"BC045-1	JANGRO PERFUMED MULTI SURFACE TOILET & WASHROOM CLEANER DESCALER 1 LTR, 36 @ £0.96",15/02/2023,0000484624,£33.84,Revenue,Pattersons (Bristol) Ltd,0
South Ribble Borough Council,http://statistics.data.gov.uk/id/local-authority/30UE,Central Support Services,Consumable Clng Materials,2711,"BK104-5	JANGRO HAND SOAP UNPERFUMED 5LTR, 4 @ £4.91",15/02/2023,0000484624,£21.16,Revenue,Pattersons (Bristol) Ltd,0
South Ribble Borough Council,http://statistics.data.gov.uk/id/local-authority/30UE,Central Support Services,Consumable Clng Materials,2711,"CG107-B	MICROTEX CLEANING CLOTH 40X40 BLUE, 2 @ £3.51",15/02/2023,0000484624,£14.58,Revenue,Pattersons (Bristol) Ltd,0
South Ribble Borough Council,http://statistics.data.gov.uk/id/local-authority/30UE,Central Support Services,Consumable Clng Materials,2711,"CG107-G	MICROTEX CLEANING CLOTH 40X40 GREEN, 2 @ 3.51",15/02/2023,0000484624,£14.58,Revenue,Pattersons (Bristol) Ltd,0
South Ribble Borough Council,http://statistics.data.gov.uk/id/local-authority/30UE,Central Support Services,Consumable Clng Materials,2711,"CG107-P	MICROTEX CLEANING CLOTH 40X40 PINK, 2 @ £3.51",15/02/2023,0000484624,£14.58,Revenue,Pattersons (Bristol) Ltd,0
South Ribble Borough Council,http://statistics.data.gov.uk/id/local-authority/30UE,Central Support Services,Consumable Clng Materials,2711,"CM140-39	JANGRO REFUSE SACKS 18X29X39 140G MEDIUM DUTY BLACK (200), 4 @ £7.64",15/02/2023,0000484624,£32.24,Revenue,Pattersons (Bristol) Ltd,0
South Ribble Borough Council,http://statistics.data.gov.uk/id/local-authority/30UE,Central Support Services,Consumable Clng Materials,2711,"HA015-G	EXEL PY MOP HEAD 250 GRM, COLOUR CODED - GREEN, 1 @ £0.77",15/02/2023,0000484624,£0.86,Revenue,Pattersons (Bristol) Ltd,0
South Ribble Borough Council,http://statistics.data.gov.uk/id/local-authority/30UE,Central Support Services,Consumable Clng Materials,2711,"HL085	ERASE ALL PADS, WHITE (10), 3 @ £1.49",15/02/2023,0000484624,£4.50,Revenue,Pattersons (Bristol) Ltd,0
South Ribble Borough Council,http://statistics.data.gov.uk/id/local-authority/30UE,Central Support Services,Consumable Clng Materials,2711,"EC106	DURACELL BATTERIES AA - PACK OF 4, 4 @ £2.42",15/02/2023,0000484624,£9.32,Revenue,Pattersons (Bristol) Ltd,0
South Ribble Borough Council,http://statistics.data.gov.uk/id/local-authority/30UE,Central Support Services,Consumable Clng Materials,2711,"FA982	SEBO 3 LAYER VACUUM BAGS FOR FELIX/DART VACUUM CLEANERS, PACK OF 10, 1 @ £7.65",15/02/2023,0000484624,£5.68,Revenue,Pattersons (Bristol) Ltd,0
South Ribble Borough Council,http://statistics.data.gov.uk/id/local-authority/30UE,Central Support Services,Clothing and Uniforms,4410,DISPOSABLE GLOVES NITRILE (BOX- 100) LARGE-DG150-L,01/02/2023,0000484768,£102.96,Revenue,Pattersons (Bristol) Ltd,0
South Ribble Borough Council,http://statistics.data.gov.uk/id/local-authority/30UE,Central Support Services,Materials General,4040,MICRO MINI TOILET ROLLS - 2ply 120M X 90MM-AA201,01/02/2023,0000484768,£189.30,Revenue,Pattersons (Bristol) Ltd,0
South Ribble Borough Council,http://statistics.data.gov.uk/id/local-authority/30UE,Central Support Services,Materials General,4040,URINAL BLOCKS NON PDCB - 3KG TUB-BC078,01/02/2023,0000484768,£18.72,Revenue,Pattersons (Bristol) Ltd,0
South Ribble Borough Council,http://statistics.data.gov.uk/id/local-authority/30UE,Economic Development,Professional Fees,4510,Photography cover at events in 2022/23,08/02/2023,0000483778,£250.00,Revenue,PAUL HEYES PHOTOGRAPHY LTD,0
South Ribble Borough Council,http://statistics.data.gov.uk/id/local-authority/30UE,Surplus or Deficit on Trading,Reactive Repair & Maintenance,2020,"To clear all the external yard of glass/door/window frames, all rubbish required removing. Internal - take down mezzanines 2x sta",08/02/2023,0000484711,"£6,200.00",Revenue,PDP PROPERTY SERVICES LTD,0
South Ribble Borough Council,http://statistics.data.gov.uk/id/local-authority/30UE,Community Development,Professional Fees,4510,Christmas HAF provider 19-22 December,01/02/2023,0000484639,"£1,920.00",Revenue,Penwortham Boxing Club CIC,0
South Ribble Borough Council,http://statistics.data.gov.uk/id/local-authority/30UE,Central Support Services,Occupational Health,1408,Occupational Health Charges - Invoice No 124449,15/02/2023,0000485318,£295.00,Revenue,People Asset Management,0
South Ribble Borough Council,http://statistics.data.gov.uk/id/local-authority/30UE,Central Support Services,IT Consumables,413A,AutoCAD LT 2023 Commercial New Single-user ELD - Subscription - 1 Year - Licence x 6,22/02/2023,0000485429,"£2,380.74",Revenue,PHOENIX SOFTWARE LTD,0
South Ribble Borough Council,http://statistics.data.gov.uk/id/local-authority/30UE,Central Support Services,Rental,4012,"2022 / 2023 annual contract for the provision of sanitary services to Moss Side Depot, 81 Bison Place, Leyland as per your ref 10",22/02/2023,0000485242,£424.94,Revenue,PHS GROUP PLC,0
South Ribble Borough Council,http://statistics.data.gov.uk/id/local-authority/30UE,Central Support Services,Rental,4012,"2022 / 2023 annual contract for the provision of sanitary services to the Civic Centre as per your ref 105796	, , to include duty",15/02/2023,0000485262,"£1,264.14",Revenue,PHS GROUP PLC,0
South Ribble Borough Council,http://statistics.data.gov.uk/id/local-authority/30UE,Tourism,Planned Annual Repair & Maintenance,2021,Annual Contract for Worden Hall until 31st March 2023 this is to cover invoices that have been received with no PO number on them,22/02/2023,0000485533,"£1,212.38",Revenue,PHS GROUP PLC,0
South Ribble Borough Council,http://statistics.data.gov.uk/id/local-authority/30UE,Central Support Services,Agency Staff,1121,Enforcement consultancy services,15/02/2023,0000484977,"£1,465.95",Revenue,Planning Control & PACE Solutions,0
South Ribble Borough Council,http://statistics.data.gov.uk/id/local-authority/30UE,Central Support Services,Agency Staff,1121,special delivery,15/02/2023,0000484977,£58.00,Revenue,Planning Control & PACE Solutions,0
South Ribble Borough Council,http://statistics.data.gov.uk/id/local-authority/30UE,Central Support Services,Agency Staff,1121,Enforcement consultancy services,15/02/2023,0000484996,£855.00,Revenue,Planning Control & PACE Solutions,0
South Ribble Borough Council,http://statistics.data.gov.uk/id/local-authority/30UE,Economic Development,Public Relations Strategy,4848,Logo stickers printed and installed,22/02/2023,0000485184,"£3,615.00",Revenue,Poppy Signs Ltd,0
South Ribble Borough Council,http://statistics.data.gov.uk/id/local-authority/30UE,Central Support Services,Rail,3411,wolverhampton north,03/02/2023,0000483643,£435.00,Revenue,Premier Inn Business Account,0
South Ribble Borough Council,http://statistics.data.gov.uk/id/local-authority/30UE,Central Support Services,Paper Bulk,4133,"4 x boxes of: Evolution Everyday A3 80 gsm , = 20 reams",01/02/2023,0000484730,£198.50,Revenue,PREMIER PAPER GROUP LTD,0
South Ribble Borough Council,http://statistics.data.gov.uk/id/local-authority/30UE,Central Support Services,Paper Bulk,4133,"30 x Boxes of: Evolution Everyday A4 80gsm., (150 Reams)",01/02/2023,0000484730,£743.25,Revenue,PREMIER PAPER GROUP LTD,0
South Ribble Borough Council,http://statistics.data.gov.uk/id/local-authority/30UE,Central Support Services,Paper Bulk,4133,30 boxes Evolution Everyday A4 80gm,08/02/2023,0000485012,£743.25,Revenue,PREMIER PAPER GROUP LTD,0
South Ribble Borough Council,http://statistics.data.gov.uk/id/local-authority/30UE,Central Support Services,Paper Bulk,4133,4 boxes of A3 Evolution Everyday paper 80gsm,22/02/2023,0000485013,£198.50,Revenue,PREMIER PAPER GROUP LTD,0
South Ribble Borough Council,http://statistics.data.gov.uk/id/local-authority/30UE,Central Support Services,Paper Bulk,4133,30 Boxes of A4 Evolution Everyday 80gsm paper,22/02/2023,0000485013,£743.25,Revenue,PREMIER PAPER GROUP LTD,0
South Ribble Borough Council,http://statistics.data.gov.uk/id/local-authority/30UE,Central Support Services,Paper Bulk,4133,Evolution Everyday A4 80 gsm FSC Recycled Credit INT-COC-002103,22/02/2023,0000485014,£438.50,Revenue,PREMIER PAPER GROUP LTD,0
South Ribble Borough Council,http://statistics.data.gov.uk/id/local-authority/30UE,Open Spaces,GM Refurbishment,4657,"J2646-AUG 22(TEMA UNIT)including delivery, Parts to be packed separately for each unit to aid installation",01/02/2023,0000484212,"£4,038.43",Revenue,PROLUDIC LTD,0
South Ribble Borough Council,http://statistics.data.gov.uk/id/local-authority/30UE,Open Spaces,GM Refurbishment,4657,J33108-AUG 22(SAND PLAY UNIT)including delivery,01/02/2023,0000484213,"£3,018.79",Revenue,PROLUDIC LTD,0
South Ribble Borough Council,http://statistics.data.gov.uk/id/local-authority/30UE,Open Spaces,GM Refurbishment,4657,J2604-AUG 22(CALYPSO UNIT)including delivery,01/02/2023,0000484221,"£3,357.98",Revenue,PROLUDIC LTD,0
South Ribble Borough Council,http://statistics.data.gov.uk/id/local-authority/30UE,Open Spaces,GM Refurbishment,4657,J2410-TU2422-AUG 22(HIP HOP)including delivery,01/02/2023,0000484222,£952.60,Revenue,PROLUDIC LTD,0
South Ribble Borough Council,http://statistics.data.gov.uk/id/local-authority/30UE,Open Spaces,GM Refurbishment,4657,x3 sets of chains and seats(including bearings)as per quotation Ref. 2212.36449,22/02/2023,0000485071,"£1,282.84",Revenue,PROLUDIC LTD,0
South Ribble Borough Council,http://statistics.data.gov.uk/id/local-authority/30UE,Economic Development,Investment & Improvement,485K,"Development hours for website update , 10 hours at £32 an hour",22/02/2023,0000485016,£320.00,Revenue,PROTEAN SYSTEMS LIMITED,0
South Ribble Borough Council,http://statistics.data.gov.uk/id/local-authority/30UE,Community Development,Plan Printing,4125,"•	To Carefully Existing Notice board and take away from site., , •	To Supply and Install 1no External Weather shield Lockable Sho",22/02/2023,0000485390,£500.00,Revenue,PSR & Sons Joiners & Building Contractors,0
South Ribble Borough Council,http://statistics.data.gov.uk/id/local-authority/30UE,Community Development,Plan Printing,4125,LABOUR,22/02/2023,0000485390,£40.00,Revenue,PSR & Sons Joiners & Building Contractors,0
South Ribble Borough Council,http://statistics.data.gov.uk/id/local-authority/30UE,Homelessness,Temporary Accommodation,5311,NAMES REDACTED,22/02/2023,0000485475,"£15,557.75",Revenue,Purpleroomz,0
South Ribble Borough Council,http://statistics.data.gov.uk/id/local-authority/30UE,Homelessness,Temporary Accommodation,5311,NAMES REDACTED,22/02/2023,0000485475,£554.50,Revenue,Purpleroomz,0
South Ribble Borough Council,http://statistics.data.gov.uk/id/local-authority/30UE,Central Support Services,Consultancy Fees,4541,Health & Satey Consultancy - 19th September to 17th Feb 2023,15/02/2023,0000484858,"£1,080.00",Revenue,QHS SOLUTIONS,0
South Ribble Borough Council,http://statistics.data.gov.uk/id/local-authority/30UE,Central Support Services,Computer Maintenance,4211,System rental and communications charge - 60 vehicles for 3 months 01.01.23-31.03.23,22/02/2023,0000485569,"£2,070.00",Revenue,Quartix,0
South Ribble Borough Council,http://statistics.data.gov.uk/id/local-authority/30UE,Central Support Services,Short Course,1402,Neurodiversity training - NAME REDACTED,15/02/2023,0000484638,"£1,200.00",Revenue,Reachout ASC,0
South Ribble Borough Council,http://statistics.data.gov.uk/id/local-authority/30UE,Tourism,Reactive Repair & Maintenance,2020,"Attend site of Worden Hall/Marston Theatre and replace the lead water pipe, fit plastic alkathene water pipe - to fence area off ",01/02/2023,0000484492,"£1,400.00",Revenue,RED ROSE BUILDING MAINTENANCE,0
South Ribble Borough Council,http://statistics.data.gov.uk/id/local-authority/30UE,Tourism,Reactive Repair & Maintenance,2020,MATERIALS,01/02/2023,0000484492,£600.00,Revenue,RED ROSE BUILDING MAINTENANCE,0
South Ribble Borough Council,http://statistics.data.gov.uk/id/local-authority/30UE,Recreation & Sport,Reactive Repair & Maintenance,2020,"Jetting and camera survey, Bamber bridge leisure centre along the South front elevation £250 as per NAME REDACTED request",01/02/2023,0000484776,£100.00,Revenue,RED ROSE BUILDING MAINTENANCE,0
South Ribble Borough Council,http://statistics.data.gov.uk/id/local-authority/30UE,Recreation & Sport,Reactive Repair & Maintenance,2020,labour,01/02/2023,0000484776,£150.00,Revenue,RED ROSE BUILDING MAINTENANCE,0
South Ribble Borough Council,http://statistics.data.gov.uk/id/local-authority/30UE,Central Support Services,Reactive Repair & Maintenance,2020,"Moss side Depot, groundworks required to fill potholes. Highlighted on a H&S report/inspection recently undertaken. As per NAME REDACTED ",08/02/2023,0000485072,£200.00,Revenue,RED ROSE BUILDING MAINTENANCE,0
South Ribble Borough Council,http://statistics.data.gov.uk/id/local-authority/30UE,Central Support Services,Reactive Repair & Maintenance,2020,materials,08/02/2023,0000485072,£100.00,Revenue,RED ROSE BUILDING MAINTENANCE,0
South Ribble Borough Council,http://statistics.data.gov.uk/id/local-authority/30UE,Surplus or Deficit on Trading,Reactive Repair & Maintenance,2020,uotation to supply Labour and skips to clear out house. The property is in extremely poor condition we will clear the property ou,22/02/2023,0000485418,"£3,500.00",Revenue,RED ROSE BUILDING MAINTENANCE,0
South Ribble Borough Council,http://statistics.data.gov.uk/id/local-authority/30UE,Surplus or Deficit on Trading,Reactive Repair & Maintenance,2020,LABOUR,22/02/2023,0000485418,"£3,000.00",Revenue,RED ROSE BUILDING MAINTENANCE,0
South Ribble Borough Council,http://statistics.data.gov.uk/id/local-authority/30UE,Tourism,Fuel Oil,2301,Please 700 litres of kerosene to Worden Park PR5 1DJ - contact NAMES REDACTED,01/02/2023,0000484687,£596.24,Revenue,RIBBLE FUEL OILS,0
South Ribble Borough Council,http://statistics.data.gov.uk/id/local-authority/30UE,Non Domestic Rates Redistribut,Levy to Business Rates Pool,4994,10% LCC share under the Business Rates pooling arrangements for 2021-22,01/02/2023,0000484779,"£158,716.00",Revenue,Ribble Valley Borough Council,0
South Ribble Borough Council,http://statistics.data.gov.uk/id/local-authority/30UE,Corporate Management,Other Fees,4520,Admin charge for being in the Business Rates pool for 2022-23,01/02/2023,0000484779,"£1,818.18",Revenue,Ribble Valley Borough Council,0
South Ribble Borough Council,http://statistics.data.gov.uk/id/local-authority/30UE,Central Support Services,Photocopier Lease Rental,4036,EQV5,01/02/2023,0000484648,"£9,552.14",Revenue,RICOH (UK) LTD,0
South Ribble Borough Council,http://statistics.data.gov.uk/id/local-authority/30UE,Surplus or Deficit on Trading,Service Charge,485C,1/1 to 31/12/23,08/02/2023,0000484322,£587.00,Revenue,ROBERT PINKUS (MANAGEMENT SERVICES) LTD,0
South Ribble Borough Council,http://statistics.data.gov.uk/id/local-authority/30UE,Surplus or Deficit on Trading,Service Charge,485C,1/1 to 31/12/23,08/02/2023,0000484323,£587.00,Revenue,ROBERT PINKUS (MANAGEMENT SERVICES) LTD,0
South Ribble Borough Council,http://statistics.data.gov.uk/id/local-authority/30UE,Surplus or Deficit on Trading,Service Charge,485C,1/1 to 31/12/2023,08/02/2023,0000484324,£587.00,Revenue,ROBERT PINKUS (MANAGEMENT SERVICES) LTD,0
South Ribble Borough Council,http://statistics.data.gov.uk/id/local-authority/30UE,Surplus or Deficit on Trading,Service Charge,485C,1/1 to 31/12/2023,08/02/2023,0000484325,£587.00,Revenue,ROBERT PINKUS (MANAGEMENT SERVICES) LTD,0
South Ribble Borough Council,http://statistics.data.gov.uk/id/local-authority/30UE,Surplus or Deficit on Trading,Service Charge,485C,1/1 to 31/12/23,08/02/2023,0000484326,£587.00,Revenue,ROBERT PINKUS (MANAGEMENT SERVICES) LTD,0
South Ribble Borough Council,http://statistics.data.gov.uk/id/local-authority/30UE,Surplus or Deficit on Trading,Service Charge,485C,1/1 to 31/12/2,08/02/2023,0000484327,£587.00,Revenue,ROBERT PINKUS (MANAGEMENT SERVICES) LTD,0
South Ribble Borough Council,http://statistics.data.gov.uk/id/local-authority/30UE,Surplus or Deficit on Trading,Service Charge,485C,1/1 to 31/12/2,08/02/2023,0000484328,£587.00,Revenue,ROBERT PINKUS (MANAGEMENT SERVICES) LTD,0
South Ribble Borough Council,http://statistics.data.gov.uk/id/local-authority/30UE,Recreation & Sport,Dev ftarget Sports-Coaching,4894,"x2 Level 2 Multi-skills course, , Day 1 - Saturday 7th January - 9.30am to 4pm, Day 2 - Assessment day on 28th January - 9.30am t",01/02/2023,0000484617,£520.00,Revenue,Rossendale Leisure Trust Ltd,0
South Ribble Borough Council,http://statistics.data.gov.uk/id/local-authority/30UE,Capital,Cap Contract Payment,C230,"McKenzie Arms, Bamber Bridge (Housing Development)",08/02/2023,0000484901,"£119,443.19",Revenue,RP Tyson Construction Ltd,0
South Ribble Borough Council,http://statistics.data.gov.uk/id/local-authority/30UE,Development Control,Consultancy Fees,4541,Consultancy advice on planning applicatons for 22/2023,15/02/2023,0000484979,£450.00,Revenue,RSK ADAS Ltd,0
South Ribble Borough Council,http://statistics.data.gov.uk/id/local-authority/30UE,Development Control,Consultancy Fees,4541,Planning consultancy - rural advice on applications,15/02/2023,0000484980,£295.00,Revenue,RSK ADAS Ltd,0
South Ribble Borough Council,http://statistics.data.gov.uk/id/local-authority/30UE,Development Control,Consultancy Fees,4541,Planning consultancy - rural advice on applications,15/02/2023,0000485187,£250.00,Revenue,RSK ADAS Ltd,0
South Ribble Borough Council,http://statistics.data.gov.uk/id/local-authority/30UE,Development Control,Consultancy Fees,4541,Planning consultancy - rural advice on applications,15/02/2023,0000485197,£550.00,Revenue,RSK ADAS Ltd,0
South Ribble Borough Council,http://statistics.data.gov.uk/id/local-authority/30UE,Central Support Services,External Contractors Charges,4570,"Repairs to body floor, ejector plate, wheels and rails VIN REDACTED",01/02/2023,0000484781,"£5,327.95",Revenue,RTS Muni,0
South Ribble Borough Council,http://statistics.data.gov.uk/id/local-authority/30UE,Central Support Services,External Contractors Charges,4570,Spec repair MX04 YNL JFC19479,15/02/2023,0000485407,"£1,359.00",Revenue,RTS Muni,0
South Ribble Borough Council,http://statistics.data.gov.uk/id/local-authority/30UE,Short Term Debtors,Amount Paid,0030,To supply continued Commercial Estates support for the Test Track mixed use development as per NAME REDACTED  for 2 years From Apr,08/02/2023,0000484614,"£1,600.00",Revenue,Sanderson Weatherall LLP,0
South Ribble Borough Council,http://statistics.data.gov.uk/id/local-authority/30UE,Central Support Services,Materials General,4040,2 x coolant hoses VIN REDACTED,01/02/2023,0000484039,£306.44,Revenue,Scarab Sweepers Ltd,0
South Ribble Borough Council,http://statistics.data.gov.uk/id/local-authority/30UE,Central Support Services,External Contractors Charges,4570,Spec Repair VIN REDACTED,01/02/2023,0000484620,£412.50,Revenue,Scarab Sweepers Ltd,0
South Ribble Borough Council,http://statistics.data.gov.uk/id/local-authority/30UE,Central Support Services,Materials General,4040,"VIN REDACTED, JFC 19625, Brush Motor",15/02/2023,0000485132,£319.35,Revenue,Scarab Sweepers Ltd,0
South Ribble Borough Council,http://statistics.data.gov.uk/id/local-authority/30UE,Central Support Services,Materials General,4040,"Brush Motor, VIN REDACTED",15/02/2023,0000485132,£319.35,Revenue,Scarab Sweepers Ltd,0
South Ribble Borough Council,http://statistics.data.gov.uk/id/local-authority/30UE,Central Support Services,Agency Staff,1121,Payment to Sellick Partnership re Locum Solicitor: NAME REDACTED,01/02/2023,0000484908,"£2,518.13",Revenue,SELLICK PARTNERSHIP LTD,0
South Ribble Borough Council,http://statistics.data.gov.uk/id/local-authority/30UE,Central Support Services,Agency Staff,1121,Locum Solicitor NAME REDACTED W/E 18/12/2022 (worked one day),15/02/2023,0000485107,£445.25,Revenue,SELLICK PARTNERSHIP LTD,0
South Ribble Borough Council,http://statistics.data.gov.uk/id/local-authority/30UE,Central Support Services,Agency Staff,1121,Payment to Sellick Partnership re Locum Solicitor: NAME REDACTED,15/02/2023,0000485389,"£2,518.13",Revenue,SELLICK PARTNERSHIP LTD,0
South Ribble Borough Council,http://statistics.data.gov.uk/id/local-authority/30UE,Central Support Services,Agency Staff,1121,Payment to Sellick Partnership re Locum Solicitor: NAME REDACTED,22/02/2023,0000485560,"£2,686.00",Revenue,SELLICK PARTNERSHIP LTD,0
South Ribble Borough Council,http://statistics.data.gov.uk/id/local-authority/30UE,Capital,Cap Contract Payment,C230,Meter Reading Services for MOP contract as per NAME REDACTED,01/02/2023,0000484409,£332.00,Revenue,Siemens Plc,0
South Ribble Borough Council,http://statistics.data.gov.uk/id/local-authority/30UE,Community Development,Core Fund,4861,To provide 425 hot water bottles at £4.40 each,22/02/2023,0000485526,"£1,870.00",Revenue,SNK Retailer,0
South Ribble Borough Council,http://statistics.data.gov.uk/id/local-authority/30UE,Central Support Services,Technical Support,4246,"Supply of 20 Solo Protect Gold Devices, connection. 24 months maintenance",08/02/2023,0000484487,£837.00,Revenue,Solo Protect Ltd,0
South Ribble Borough Council,http://statistics.data.gov.uk/id/local-authority/30UE,Community Development,Professional Fees,4510,"Christmas HAF provider: 19th – 23rd December Total: £9216, Venue Hire HAF: £2000",15/02/2023,0000485093,"£11,584.73",Revenue,South Ribble Leisure Ltd,0
South Ribble Borough Council,http://statistics.data.gov.uk/id/local-authority/30UE,Central Support Services,External Contractors Charges,4570,"cylinder head skimmed and pressure tested, VIN REDACTED",08/02/2023,0000485021,£370.00,Revenue,Southfield RCV Services Limited,0
South Ribble Borough Council,http://statistics.data.gov.uk/id/local-authority/30UE,Central Support Services,Materials General,4040,"Rubber defelctor x8 bin 1049, Pivot bush x 8 bin 1134, Bearings x20 bin 1007, Rollers x7 bin 1268",08/02/2023,0000484931,£757.90,Revenue,SPALDINGS,0
South Ribble Borough Council,http://statistics.data.gov.uk/id/local-authority/30UE,Central Support Services,Materials General,4040,"Shoot shim, blades, VIN REDACTED",08/02/2023,0000485024,£293.50,Revenue,SPECTRUM PLANT LTD,0
South Ribble Borough Council,http://statistics.data.gov.uk/id/local-authority/30UE,Recreation & Sport,Electricity,2303,2/12 to 1/1/23,01/02/2023,0000484892,£526.56,Revenue,SSE 691852372 Moss Side CC Dunkirk Hall,0
South Ribble Borough Council,http://statistics.data.gov.uk/id/local-authority/30UE,Service Management & Support,Diesel Fuel,3132,"17000 Ltrs Diesel @ 127.30ppl into the , feeder tank at Unit 81 Bison Place, Moss Side key for cabinet is available from the main",01/02/2023,0000484860,"£21,639.73",Revenue,Standard Fuel Oils LtdMain,0
South Ribble Borough Council,http://statistics.data.gov.uk/id/local-authority/30UE,Capital,Capital Grant,C570,"DFG WORK TO SUPPLY AND INSTALL A STAIRLIFT AT ADDRESS REDACTED AS PER QUOTE SUPPLIED OF £6199.00, TOTAL COST £6199.0",01/02/2023,0000484645,"£6,199.00",Revenue,Stannah Lift Services Ltd,0
South Ribble Borough Council,http://statistics.data.gov.uk/id/local-authority/30UE,Central Support Services,Legal,4821,Advice in respect of unauthorised works to TPO trees at Penwortham residential site-Tas requested,15/02/2023,0000485294,"£1,350.00",Revenue,STEPHANIE HALL,0
South Ribble Borough Council,http://statistics.data.gov.uk/id/local-authority/30UE,Central Support Services,Planned Annual Repair & Maintenance,2021,Annual Contract for 2022/2023 for the moveable walls x 2 Moveo - 2 service visits per year in the Civic Suite ref SNO-SQ-1622 as ,15/02/2023,0000485119,£910.00,Revenue,STYLE MOVEABLE PARTITION SPECIALISTS,0
South Ribble Borough Council,http://statistics.data.gov.uk/id/local-authority/30UE,Community Development,Core Fund,4861,"Warm Welcome Accessory Packs, , 540 x FLEECE BLANKET 200X240CM CHECK (GREY) @ £6.75 each, Total = £3,645.00, 540 x HOT WATER BOTT",15/02/2023,0000484962,"£6,075.00",Revenue,Sunhigh Limited,0
South Ribble Borough Council,http://statistics.data.gov.uk/id/local-authority/30UE,Open Spaces,GM Refurbishment,4657,Activzone spare parts as per quote ref. CF260722H,15/02/2023,0000482912,"£4,118.51",Revenue,SUTCLIFFE PLAY LTD,0
South Ribble Borough Council,http://statistics.data.gov.uk/id/local-authority/30UE,Open Spaces,GM Refurbishment,4657,8x PZT066 Flexi hanger Assembly Turquoise as per quotation VIN REDACTED Total cost incl. del. £3601.85.,15/02/2023,0000484095,"£1,800.93",Revenue,SUTCLIFFE PLAY LTD,0
South Ribble Borough Council,http://statistics.data.gov.uk/id/local-authority/30UE,Open Spaces,GM Refurbishment,4657,8x PZT066 Flexi hanger Assembly Turquoise as per quotation VIN REDACTED. Total cost incl. del. £3601.85.,15/02/2023,0000484095,"£1,800.92",Revenue,SUTCLIFFE PLAY LTD,0
South Ribble Borough Council,http://statistics.data.gov.uk/id/local-authority/30UE,Central Support Services,Operational Equip & Tools,4010,6 Monthly Calibration Roller Brake Tester,01/02/2023,0000484722,£420.00,Revenue,Tecalemit Garage Equipment Company Limited,0
South Ribble Borough Council,http://statistics.data.gov.uk/id/local-authority/30UE,Central Support Services,Network and Security,4247,"Resilient Internet Route 2: South Ribble Borough Council Civic Centre, PR25 1DH*Route 1 quoted seperatly002 Install 2/10Gb Intern",01/02/2023,0000484631,"£3,871.44",Revenue,The Networking People (TNP) Ltd,0
South Ribble Borough Council,http://statistics.data.gov.uk/id/local-authority/30UE,Central Support Services,Computer Equipment,4241,"Satellite site connectivity , Capital – , Licence -2,701.36, Hardware-15,745.83, Install – 12,624.88",22/02/2023,0000484890,"£2,835.80",Revenue,The Networking People (TNP) Ltd,0
South Ribble Borough Council,http://statistics.data.gov.uk/id/local-authority/30UE,Central Support Services,Consultancy Fees,4541,"PS Days 3, Scope of works: , 1.5 PS days to triage and remediate connectivity issues at Leyland Leisure centre, - Objective: Loca",08/02/2023,0000485008,£362.50,Revenue,The Networking People (TNP) Ltd,0
South Ribble Borough Council,http://statistics.data.gov.uk/id/local-authority/30UE,Central Support Services,Network and Security,4247,Excess construction charges for ONEA86793224,22/02/2023,0000485213,"£2,689.99",Revenue,The Networking People (TNP) Ltd,0
South Ribble Borough Council,http://statistics.data.gov.uk/id/local-authority/30UE,Central Support Services,Technical Support,4246,"Additional block of 100 RMACs for Chorley & South Ribble, , 001 Block of 100 RMACs £5,500.00",22/02/2023,0000485411,"£5,500.00",Revenue,The Networking People (TNP) Ltd,0
South Ribble Borough Council,http://statistics.data.gov.uk/id/local-authority/30UE,Central Support Services,Occupational Health,1408,6 X SESSIONS OF THERAPY FOR PW AS DISCUSSED,22/02/2023,0000485453,£280.00,Revenue,THE THERAPY COMPANY,0
South Ribble Borough Council,http://statistics.data.gov.uk/id/local-authority/30UE,Central Support Services,External Contractors Charges,4570,TR 246,15/02/2023,0000485089,£399.08,Revenue,Tomlinson Road Tyres,0
South Ribble Borough Council,http://statistics.data.gov.uk/id/local-authority/30UE,Central Support Services,Electricity,2303,1/12 to 31/12/22,01/02/2023,0000484595,"£3,953.43",Revenue,Total Gas & power Ltd,0
South Ribble Borough Council,http://statistics.data.gov.uk/id/local-authority/30UE,Open Spaces,Electricity,2303,1/8 to 31/8/22,22/02/2023,0000485166,£523.37,Revenue,Total Gas & power Ltd,0
South Ribble Borough Council,http://statistics.data.gov.uk/id/local-authority/30UE,Open Spaces,Electricity,2303,1/11 to 31/1/23,22/02/2023,0000485167,£823.88,Revenue,Total Gas & power Ltd,0
South Ribble Borough Council,http://statistics.data.gov.uk/id/local-authority/30UE,Open Spaces,Electricity,2303,1/11 to 31/1/23,22/02/2023,0000485170,£953.18,Revenue,Total Gas & power Ltd,0
South Ribble Borough Council,http://statistics.data.gov.uk/id/local-authority/30UE,Central Support Services,Electricity,2303,1/1 to 31/1/23,22/02/2023,0000485178,"£3,115.63",Revenue,Total Gas & power Ltd,0
South Ribble Borough Council,http://statistics.data.gov.uk/id/local-authority/30UE,Central Support Services,Electricity,2303,1/1 to 31/1/23,22/02/2023,0000485179,"£4,213.04",Revenue,Total Gas & power Ltd,0
South Ribble Borough Council,http://statistics.data.gov.uk/id/local-authority/30UE,Tourism,Electricity,2303,1/1 to 31/1/23,22/02/2023,0000485180,"£3,520.92",Revenue,Total Gas & power Ltd,0
South Ribble Borough Council,http://statistics.data.gov.uk/id/local-authority/30UE,Economic Development,Gas,2304,31 oct 22 - 30 nov 22,22/02/2023,0000485350,"£1,826.74",Revenue,Total Gas & power Ltd,0
South Ribble Borough Council,http://statistics.data.gov.uk/id/local-authority/30UE,Central Support Services,Gas,2304,30 oct 22 - 30 nov 22,22/02/2023,0000485351,"£5,619.50",Revenue,Total Gas & power Ltd,0
South Ribble Borough Council,http://statistics.data.gov.uk/id/local-authority/30UE,Open Spaces,Electricity,2303,1/11 to 30/11/22,22/02/2023,0000485419,£709.19,Revenue,Total Gas & power Ltd,0
South Ribble Borough Council,http://statistics.data.gov.uk/id/local-authority/30UE,Open Spaces,Electricity,2303,Changing pavillion willow close,22/02/2023,0000485507,£905.27,Revenue,Total Gas & power Ltd,0
South Ribble Borough Council,http://statistics.data.gov.uk/id/local-authority/30UE,Open Spaces,Electricity,2303,Withy Grove,22/02/2023,0000485510,£455.42,Revenue,Total Gas & power Ltd,0
South Ribble Borough Council,http://statistics.data.gov.uk/id/local-authority/30UE,Open Spaces,Gas,2304,Holland house pavillion,22/02/2023,0000485520,£395.97,Revenue,Total Gas & power Ltd,0
South Ribble Borough Council,http://statistics.data.gov.uk/id/local-authority/30UE,Culture & Heritage,Gas,2304,Museum,22/02/2023,0000485521,£658.41,Revenue,Total Gas & power Ltd,0
South Ribble Borough Council,http://statistics.data.gov.uk/id/local-authority/30UE,Central Support Services,Gas,2304,civic ctr,22/02/2023,0000485522,"£2,066.21",Revenue,Total Gas & power Ltd,0
South Ribble Borough Council,http://statistics.data.gov.uk/id/local-authority/30UE,Service Management & Support,External Contractors Charges,4570,Annual software licence 03/03/23-02/03/24,15/02/2023,0000485232,"£1,460.00",Revenue,TRISCAN SYSTEMS LIMITED,0
South Ribble Borough Council,http://statistics.data.gov.uk/id/local-authority/30UE,Central Support Services,External Contractors Charges,4570,Truck Tyre Maintenance December 2022,01/02/2023,0000484735,"£2,143.28",Revenue,Tructyre Fleet Management Ltd,0
South Ribble Borough Council,http://statistics.data.gov.uk/id/local-authority/30UE,Central Support Services,External Contractors Charges,4570,Truck Tyre Maintenance - January 2023,22/02/2023,0000485470,"£3,383.67",Revenue,Tructyre Fleet Management Ltd,0
South Ribble Borough Council,http://statistics.data.gov.uk/id/local-authority/30UE,Street Cleansing,Operational Equip & Tools,4010,Chapin 82400B Professional Salt Spreader-Heavy Duty/CHA82400B,15/02/2023,0000485087,£335.50,Revenue,Tudor (UK) Ltd t/a Tudor Environmental,0
South Ribble Borough Council,http://statistics.data.gov.uk/id/local-authority/30UE,Corporate Management,Grants and Subscriptions,4741,mandatory & admin element underspend,22/02/2023,0000485395,"£80,801.40",Revenue,UK Health Security Agency,0
South Ribble Borough Council,http://statistics.data.gov.uk/id/local-authority/30UE,Central Support Services,UK Healthcare,1710,01 Feb 23,22/02/2023,0000485246,"£1,725.00",Revenue,UK healthcare (BDHSC),0
South Ribble Borough Council,http://statistics.data.gov.uk/id/local-authority/30UE,Economic Development,Operational Equip & Tools,4010,"SRBC - Music In The Park 2023 - Production, , Our Reference SQ8565",01/02/2023,0000484731,"£21,900.00",Revenue,UK Media Events Ltd,0
South Ribble Borough Council,http://statistics.data.gov.uk/id/local-authority/30UE,Economic Development,Advertising,4841,Monthly management fee for social media and email campaigns for website November to May,15/02/2023,0000485200,£950.00,Revenue,UK Media Events Ltd,0
South Ribble Borough Council,http://statistics.data.gov.uk/id/local-authority/30UE,Economic Development,Contributions to Other Bodies,4730,Year 2 delivery of the Credit Union project,15/02/2023,0000485396,"£12,500.00",Revenue,Unify Credit Union Ltd,0
South Ribble Borough Council,http://statistics.data.gov.uk/id/local-authority/30UE,Regulatory Services,Analyst Fee,4542,Water Samples for 2022/23,15/02/2023,0000485250,£339.53,Revenue,UNITED UTILITIES WATER PLC,0
South Ribble Borough Council,http://statistics.data.gov.uk/id/local-authority/30UE,Democratic Represent and  Mgnt,Operational Equip & Tools,4010,To supply and deliver AA First Artic Chill contactless plumbed water cooler.,22/02/2023,0000484641,£730.00,Revenue,VENDING ENTERPRISES,0
South Ribble Borough Council,http://statistics.data.gov.uk/id/local-authority/30UE,Democratic Represent and  Mgnt,Operational Equip & Tools,4010,"Year 1	£2,895.00	 	, Year 2	£250.00	 	, Year 3	£250.00	 	, Year 4	£250.00	 	, Year 5	£250.00	 	, Year 6	£250.00	 	, 			, Total Co",01/02/2023,0000484653,"£2,895.00",Revenue,VENDING ENTERPRISES,0
South Ribble Borough Council,http://statistics.data.gov.uk/id/local-authority/30UE,Recreation & Sport,Reactive Repair & Maintenance,2020,Brindle Road parking as per NAME REDACTED and quote dated 11th Jan 2023 VENT 2023 - 109 establish and maintain and remove no parkin,08/02/2023,0000485085,"£1,290.00",Revenue,VENTBROOK LTD,0
South Ribble Borough Council,http://statistics.data.gov.uk/id/local-authority/30UE,Recreation & Sport,Reactive Repair & Maintenance,2020,Brindle Road parking as per NAME REDACTED and quote dated 11th Jan 2023 VENT 2023 - 109 establish and maintain and remove no parkin,08/02/2023,0000485086,"£1,290.00",Revenue,VENTBROOK LTD,0
South Ribble Borough Council,http://statistics.data.gov.uk/id/local-authority/30UE,Central Support Services,Agency Staff,1121,Consultant planning officer NAME REDACTED,01/02/2023,0000484122,"£1,995.00",Revenue,Vivid Resourcing,0
South Ribble Borough Council,http://statistics.data.gov.uk/id/local-authority/30UE,Central Support Services,Agency Staff,1121,Consultant planning officer NAME REDACTED,01/02/2023,0000484390,"£1,942.50",Revenue,Vivid Resourcing,0
South Ribble Borough Council,http://statistics.data.gov.uk/id/local-authority/30UE,Central Support Services,Agency Staff,1121,Fees for NAME REDACTED,01/02/2023,0000484609,"£2,400.00",Revenue,Vivid Resourcing,0
South Ribble Borough Council,http://statistics.data.gov.uk/id/local-authority/30UE,Central Support Services,Agency Staff,1121,Consultant planning officer NAME REDACTED,15/02/2023,0000484683,"£3,504.38",Revenue,Vivid Resourcing,0
South Ribble Borough Council,http://statistics.data.gov.uk/id/local-authority/30UE,Central Support Services,Agency Staff,1121,Fees for NAME REDACTED,22/02/2023,0000484713,"£2,400.00",Revenue,Vivid Resourcing,0
South Ribble Borough Council,http://statistics.data.gov.uk/id/local-authority/30UE,Corporate Management,Agency Staff,1121,Fees for NAME REDACTED,01/02/2023,0000484739,"£2,220.00",Revenue,Vivid Resourcing,0
South Ribble Borough Council,http://statistics.data.gov.uk/id/local-authority/30UE,Central Support Services,Agency Staff,1121,Fees for NAME REDACTED,01/02/2023,0000484891,"£2,000.00",Revenue,Vivid Resourcing,0
South Ribble Borough Council,http://statistics.data.gov.uk/id/local-authority/30UE,Central Support Services,Agency Staff,1121,Fees for NAME REDACTED,22/02/2023,0000485083,"£2,400.00",Revenue,Vivid Resourcing,0
South Ribble Borough Council,http://statistics.data.gov.uk/id/local-authority/30UE,Central Support Services,Agency Staff,1121,Consultant planning officer NAME REDACTED,15/02/2023,0000485084,"£1,942.50",Revenue,Vivid Resourcing,0
South Ribble Borough Council,http://statistics.data.gov.uk/id/local-authority/30UE,Central Support Services,Agency Staff,1121,Fees for NAME REDACTED,22/02/2023,0000485216,"£2,400.00",Revenue,Vivid Resourcing,0
South Ribble Borough Council,http://statistics.data.gov.uk/id/local-authority/30UE,Corporate Management,Agency Staff,1121,Fees for NAME REDACTED,15/02/2023,0000485293,"£2,070.00",Revenue,Vivid Resourcing,0
South Ribble Borough Council,http://statistics.data.gov.uk/id/local-authority/30UE,Central Support Services,Agency Staff,1121,Fees for NAME REDACTED,22/02/2023,0000485414,"£2,400.00",Revenue,Vivid Resourcing,0
South Ribble Borough Council,http://statistics.data.gov.uk/id/local-authority/30UE,Central Support Services,Agency Staff,1121,Fees for NAME REDACTED,22/02/2023,0000485421,"£2,400.00",Revenue,Vivid Resourcing,0
South Ribble Borough Council,http://statistics.data.gov.uk/id/local-authority/30UE,Corporate Management,Agency Staff,1121,Fees for NAME REDACTED,22/02/2023,0000485422,"£3,735.00",Revenue,Vivid Resourcing,0
South Ribble Borough Council,http://statistics.data.gov.uk/id/local-authority/30UE,Central Support Services,Agency Staff,1121,Fees for NAME REDACTED,22/02/2023,0000485448,"£2,400.00",Revenue,Vivid Resourcing,0
South Ribble Borough Council,http://statistics.data.gov.uk/id/local-authority/30UE,Corporate Management,Agency Staff,1121,Fees for NAME REDACTED,22/02/2023,0000485450,"£4,920.00",Revenue,Vivid Resourcing,0
South Ribble Borough Council,http://statistics.data.gov.uk/id/local-authority/30UE,Corporate Management,Agency Staff,1121,Fees for NAME REDACTED,22/02/2023,0000485458,"£2,160.00",Revenue,Vivid Resourcing,0
South Ribble Borough Council,http://statistics.data.gov.uk/id/local-authority/30UE,Corporate Management,Agency Staff,1121,Fees for NAME REDACTED,22/02/2023,0000485459,"£2,325.00",Revenue,Vivid Resourcing,0
South Ribble Borough Council,http://statistics.data.gov.uk/id/local-authority/30UE,Corporate Management,Agency Staff,1121,Fees for NAME REDACTED,22/02/2023,0000485460,"£2,265.00",Revenue,Vivid Resourcing,0
South Ribble Borough Council,http://statistics.data.gov.uk/id/local-authority/30UE,Corporate Management,Agency Staff,1121,Fees for NAME REDACTED,22/02/2023,0000485461,"£1,980.00",Revenue,Vivid Resourcing,0
South Ribble Borough Council,http://statistics.data.gov.uk/id/local-authority/30UE,Open Spaces,GM Refurbishment,4657,"Provision of M&E consultancy services in , connection with updated scheme design & , tender documentation for Hurst Grange Park ,",01/02/2023,0000484742,£375.00,Revenue,WALMSLEY ASSOCIATES,0
South Ribble Borough Council,http://statistics.data.gov.uk/id/local-authority/30UE,Central Support Services,Materials General,4040,Sensor- 10017105 VIN REDACTED,15/02/2023,0000485122,£322.32,Revenue,WasteParts UK Ltd,0
South Ribble Borough Council,http://statistics.data.gov.uk/id/local-authority/30UE,Open Spaces,Water Charges(Metered),2511,26 sept 22 - 12 jan 23,01/02/2023,0000484875,"£1,236.61",Revenue,WATER PLUS,0
South Ribble Borough Council,http://statistics.data.gov.uk/id/local-authority/30UE,Culture & Heritage,Water Charges(Metered),2511,1 sept 21 - 20 jan 23,08/02/2023,0000485034,£267.45,Revenue,WATER PLUS,0
South Ribble Borough Council,http://statistics.data.gov.uk/id/local-authority/30UE,Central Support Services,Water Charges(Metered),2511,14 nov 22 - 15 jan 23,08/02/2023,0000484956,£661.01,Revenue,WaterPlus 4080412513 Unit 81 Bison Place,0
South Ribble Borough Council,http://statistics.data.gov.uk/id/local-authority/30UE,Central Support Services,Water Charges(Metered),2511,,08/02/2023,0000484960,"£4,261.18",Revenue,WaterPlus 4080412513 Unit 81 Bison Place,0
South Ribble Borough Council,http://statistics.data.gov.uk/id/local-authority/30UE,Central Support Services,Water Charges(Metered),2511,25 dec 22 - 24 jan 23,08/02/2023,0000484955,£507.68,Revenue,"WaterPlus 4083872980 Council Offices, West Paddock",0
South Ribble Borough Council,http://statistics.data.gov.uk/id/local-authority/30UE,Open Spaces,Water Charges(Metered),2511,7 dec 22 - 9 jan 23,01/02/2023,0000484874,"£1,189.58",Revenue,WaterPlus 4191231371 Worden Park,0
South Ribble Borough Council,http://statistics.data.gov.uk/id/local-authority/30UE,Open Spaces,Water Charges(Metered),2511,09 sept 20 - 20 nov 20,15/02/2023,0000485354,"£2,850.15",Revenue,WaterPlus 4191231371 Worden Park,0
South Ribble Borough Council,http://statistics.data.gov.uk/id/local-authority/30UE,Open Spaces,Water Charges(Metered),2511,water supply,22/02/2023,0000485512,£716.26,Revenue,WaterPlus 4191231371 Worden Park,0
South Ribble Borough Council,http://statistics.data.gov.uk/id/local-authority/30UE,Open Spaces,Water Charges(Metered),2511,used,22/02/2023,0000485512,£473.32,Revenue,WaterPlus 4191231371 Worden Park,0
South Ribble Borough Council,http://statistics.data.gov.uk/id/local-authority/30UE,Open Spaces,Water Charges(Metered),2511,late fee,22/02/2023,0000485512,£70.00,Revenue,WaterPlus 4191231371 Worden Park,0
South Ribble Borough Council,http://statistics.data.gov.uk/id/local-authority/30UE,Surplus or Deficit on Trading,Water Charges(Metered),2511,1/4/17 to 31/3/18,22/02/2023,0000485504,"£1,702.72",Revenue,WaterPlus 6000332825 Car Prk Middleforth,0
South Ribble Borough Council,http://statistics.data.gov.uk/id/local-authority/30UE,Recreation & Sport,Planned Annual Repair & Maintenance,2021,"Continuation of hire of unit at Penwortham Holme as per NAME REDACTED request for 2022/2023 April 2022	£420.00 May 2022 	£434.00 June 202",01/02/2023,0000484656,£434.00,Revenue,Wernick Hire Ltd,0
South Ribble Borough Council,http://statistics.data.gov.uk/id/local-authority/30UE,Recreation & Sport,Planned Annual Repair & Maintenance,2021,"Continuation of hire of unit at Penwortham Holme as per NAME REDACTED request for 2022/2023 April 2022	£420.00 May 2022 	£434.00 June 202",15/02/2023,0000485255,£434.00,Revenue,Wernick Hire Ltd,0
South Ribble Borough Council,http://statistics.data.gov.uk/id/local-authority/30UE,Community Development,Core Fund,4861,Lighting of two trees at Gregson Lane as discussed and agreed,15/02/2023,0000485020,£700.00,Revenue,WESTFIELD TREE SERVICES LTD,0
South Ribble Borough Council,http://statistics.data.gov.uk/id/local-authority/30UE,Central Support Services,Franked Post,4292,Ongoing post costs,22/02/2023,0000484658,£734.92,Revenue,WHISTL  UK LTD,0
South Ribble Borough Council,http://statistics.data.gov.uk/id/local-authority/30UE,Central Support Services,Office Requisites,4136,over due was grn`d on 17/1/23 for this invoice but used in error against %3710%,08/02/2023,0000484861,£763.79,Revenue,WHISTL  UK LTD,0
South Ribble Borough Council,http://statistics.data.gov.uk/id/local-authority/30UE,Central Support Services,Franked Post,4292,Ongoing post costs,08/02/2023,0000485001,£294.86,Revenue,WHISTL  UK LTD,0
South Ribble Borough Council,http://statistics.data.gov.uk/id/local-authority/30UE,Central Support Services,Franked Post,4292,Ongoing post costs,08/02/2023,0000485080,£278.44,Revenue,WHISTL  UK LTD,0
South Ribble Borough Council,http://statistics.data.gov.uk/id/local-authority/30UE,Central Support Services,Franked Post,4292,Ongoing post costs,22/02/2023,0000485292,£388.56,Revenue,WHISTL  UK LTD,0
South Ribble Borough Council,http://statistics.data.gov.uk/id/local-authority/30UE,Central Support Services,Franked Post,4292,Ongoing post costs,22/02/2023,0000485468,£457.26,Revenue,WHISTL  UK LTD,0
South Ribble Borough Council,http://statistics.data.gov.uk/id/local-authority/30UE,Open Spaces,GM Refurbishment,4657,1x Bearing base for Rock ‘n’ bowl roundabout as per quote ,01/02/2023,0000484488,"£1,114.95",Revenue,WICKSTEED LEISURE LTD,0
South Ribble Borough Council,http://statistics.data.gov.uk/id/local-authority/30UE,Open Spaces,GM Refurbishment,4657,"Dob lane kit bridge, Delivered to SRBC depot - Bison Pl, Moss Side Industrial Estate, Leyland PR26 7QR, QUOTE Ref: HT/Q54167a",08/02/2023,0000484932,"£3,668.00",Revenue,WOODCSCAPE LIMITED,0
South Ribble Borough Council,http://statistics.data.gov.uk/id/local-authority/30UE,Open Spaces,Commemorative Features,4019,7 rectangular plaques £175.00 Disc plaque £60.00 Screws & caps £72.00,15/02/2023,0000485079,£307.00,Revenue,WOODSTOCK SIGNS,0
South Ribble Borough Council,http://statistics.data.gov.uk/id/local-authority/30UE,Development Control,Consultancy Fees,4541,drainage assessment at ADDRESS REDACTED,15/02/2023,0000485077,"£1,950.00",Revenue,WSP UK Ltd,0
